{"text_format":"3","workbook":"xlsx","n_sheets":2,"sheets":["Cover","Inkulu PS - BOQ"],"not_rendered":{"images":1,"defined_names":3},"read":"whole","date_system":"1900"}

{"sheet":"Cover","index":0,"n_rows":48,"n_cols":4,"rows_kept":48,"merged":[[0,0,0,3],[1,0,1,3],[4,5,4,7],[13,0,13,3],[14,0,14,3],[16,0,16,3],[17,0,17,3],[19,0,19,3],[20,0,20,3],[21,0,21,1],[21,2,21,3],[22,0,22,1],[22,2,22,3],[23,0,23,1],[23,2,23,3],[24,0,24,1],[24,2,24,3],[25,0,25,1],[25,2,25,3],[26,2,26,3],[27,2,27,3],[28,0,28,1],[28,2,28,3],[29,0,29,1],[29,2,29,3],[33,2,33,3],[34,2,34,3],[35,2,35,3],[36,2,36,3],[37,2,37,3],[40,0,40,3],[45,0,45,3]]}
["PROVINCIAL ADMINISTRATION OF KWAZULU-NATAL"]
["DEPARTMENT OF PUBLIC WORKS"]
{"$rows_empty":11}
["BILLS OF QUANTITIES"]
["with GCC for Construction Works - Second Edition 2010"]
[]
["CONTRACTUAL SECTION"]
["ONE VOLUME APPROACH"]
[]
["PHASE 14: STORM DAMAGED PROGRAMME: REPAIRS AND RENOVATIONS TO STORM DAMAGED SCHOOLS THROUGHOUT THE PROVINCE OF KWAZULU-NATAL: SOUTHERN REGION: CLUSTER 83: INKULU PRIMARY SCHOOL. OPEN BIDS"]
[]
["Engineer/Principal Agent"]
["Ravi Jhupsee Architects cc t/a Architronic"]
["P.O. Box 19393"]
["Dormerton"]
["Durban"]
[4091]
["Tel Number:     031 201 3933"]
["Fax Number:    031 201 3930"]
["marvinm@architronic.co.za"]
[]
[]
["Employer:",null,"Region:"]
["Head: Public Works",null,"Head Public Works: Operations"]
["KZN Department of Public Works",null,"KZN Department of Public Works"]
["Private Bag X 9041",null,"X9041"]
["PIETERMARITZBURG",null,"Pietermaritzburg"]
[3200,null,"3200"]
["Tel Number:     033 - 355 5569",null,"Tel Number:","033 - 355 5569"]
["Fax Number:    N/A",null,"Fax Number:","N/A"]
[]
["Tender Number:           ZNTM01197W"," ","Project Code:","063258"]
["CIDB Grading:         6GB OR HIGHER"," ","Document Date:","18 January 2024"]
["ECDP Number:        N/A"]
[]
["Contracting Party: __________________________________________________________________________"]
["CIDB Registration number:",null,"______________________________________"]
["Central Suppliers Database Registration Number: ",null,"______________________________________"]

{"sheet":"Inkulu PS - BOQ","index":1,"n_rows":1821,"n_cols":6,"rows_kept":1821}
["ITEM NO","DESCRIPTION","UNIT","QUANTITY","RATE","AMOUNT"]
[]
[null,"BILL NO. 1"]
[]
[null,"PRELIMINARIES "]
[]
[1,"Preliminaries","Item",1,null,{"$f":"D7*E7","v":0}]
[]
["Bill No. 1","Carried to Summary",{"$nulls":3},{"$f":"SUM(F6:F8)","v":0}]
[]
[null,"BILL NO. 2"]
[]
[null,"ALTERATIONS (PROVISIONAL)"]
[]
[null,"(CPAP WORK GROUP NO. 102 UNLESS OTHERWISE STATED)"]
[]
[null,"Key:                          Location Description  \nA                               Block A (Admin & 2 classroom) \nB                               Block B (2 classroom) \nC                               Block C (4 classroom) \nD                               Block D (3 classroom) \nE                               Kitchen \nF                               External works \nG                               General "]
[]
[null,"PREAMBLES"]
[]
[null,"The tenderer is referred to the relevant clauses in the Standard Preambles for Trades 2008 which are incorporated at the back of these Bills of Quantities."]
[]
[null,"SUPPLEMENTARY PREAMBLES"]
[]
[null,"View site:"]
[]
[null,"Before submitting his tender the contractor shall visit the site and satisfy himself as to the nature and extent of the work to be done and the value of the materials contained in the buildings or portions of the buildings to be demolished.  No claim for any variations of the contract sum in respect of the nature and extent of the work or of inferior or damaged materials will be entertained"]
[]
[null,"Damage to existing finishes:"]
[]
[null,"The Contractor will be held responsible for all damage, however caused, to existing finishes and fittings etc. and he must make good all damage at his own expense to the approval of the Principal Agent"]
[]
[null,"Breaking down, demolition and alteration activities and tasks, hacking off of existing plaster, etc. is to be executed with care so as to prevent damage to remaining floor and wall surfaces and finishes (where these are to be retained). Tenders will be deemed to include allowance for any necessary protection of existing surfaces and structures as may be necessary to effect the above, as the cost of repairing damage to existing surfaces and structures will be solely for the Contractors account"]
[]
[null,"Responsibility for site:"]
[]
[null,"The contractor is to note that upon possession of the site by himself, and extending until practical completion is achieved, he is solely responsible for the site, site security, general upkeep and cleaning of the site and all other responsibilities in maintaining a construction site in conformance with but not limited to, the Construction Regulations 2003, all local by-laws, all user client regulations, and all Client regulations and procedures. Tenderers are therefore urged to study all available material and to investigate fully the site and areas contiguous to the site, in order to determine the range and extent of responsibility. No additional monetary and/or time claims will be entertained in respect of the above"]
[]
[null,"Explosives :"]
[]
[null,"No explosives whatsoever may be used for demolition purposes unless otherwise stated"]
[]
[null,"General:"]
[]
[null,"The contract shall carry out the whole of the works with as little mess and noise as possible and with a minimum of disturbance to adjoining classroom blocks and their students. He shall provide proper protection and provide, erect and remove when directed, any temporary tapaulins that may be necessary during the progress of the works, or to the satisfaction of the principal agent"]
[]
[null,"Water supply pipes and other piping that may be encountered and found necessary to disconnect or cut, shall be effectually stopped off or grubbed up and removed, and any new connections that may be necessary shall be made with proper fittings, to the satisfaction of the principal agent"]
[]
[null,"Prices for taking out of doors, windows, etc. shall include for removal of all beads, architraves, ironmongery, etc"]
[]
[null,"Prices for taking out and removing doors and frames shall include for removing door stops, cabin hooks, etc. and making good floor and wall finishes to match existing"]
[]
[null,"With regard to building up of openings in existing walls, cement screeds and pavings, granolithic, tops of walls, etc., shall be levelled and prepared for raising of brickwork"]
[]
[null,"Making good of finishes shall include making good of the brick and concrete surfaces onto which the new finishes are applied, where necessary"]
[]
[null,"The contractor will be required to take all dimensions affecting the existing buildings on the site and he will be held solely responsible for the accuracy of all such dimensions where used in the manufacture of new items (doors, windows, fittings, etc.)"]
[]
[null,"Removal of materials:"]
[]
[null,"Where removal is included in the heading, sub-heading or item description, prices shall be deemed to include for the necessary costs in removal and appropriate disposal of materials including but not limited to labour, transportation and disposal costs. No further claims in this regard will be entertained"]
[]
[null,"Removal of asbestos material:"]
[]
[null,"All preparatory work, alterations, etc., to existing asbestos cement roof sheeting, gutters, rainwater pipes, etc., is to be carried out strictly by an approved and certified specialist company and in accordance with statutory requirements (Occupational Health and Safety Act, 1993 - Asbestos Regulations 2001) and all necessary precautions must be taken when working with and disposing of asbestos cement products and the disposing of waste water resulting from cleaning operations, etc"]
[]
[null,"The following shall apply in respect of asbestos removal:"]
[]
[null,"The removal of asbestos shall be carried out by a certified entity, registered in accordance with the Occupational Health and Safety Act 1993 and the Asbestos Regulation 2001. Asbestos in all forms/building elements that is to be removed, shall be carried out in strict accordance with aforementioned regulation, and a certificate issued by the entity as contemplated in the above, shall be provided per block for the removal thereof, where the term block shall in this context refer to any single, free standing building structure, regardless of size or purpose. Corresponding disposal certificates shall be issued by the facility at which the asbestos is disposed off, with said facility to, prior to the disposal of any asbestos material provide satisfactory proof that the facility is duly registered and fully compliant in terms of the act, to receive the asbestos material. Under no circumtances is the contractor nor any of his duly authorised representatives to sell and/or give away asbestos material to any member/s of the school community, the community in general or the public at large. Should this be found to be occuring, the contractor will be held responsible contractually and may further be prosecuted criminally. The cost for complying with the above, and all requirements of regulation as reflected above is to be priced for in the items for removal of asbestos material. No further claims in this regard will therefore be entertained"]
[]
[null,"In achieving compliance in respect of asbestos removal, and in order to promote and ensure safety of the environment for school users, the contractor will be required to appoint and maintain the presence of an Approved Inspection Authority to monitor  and report on asbestos removal  and to certify all aspects related to same including method, volume removed, volume disposed of, etc.Provision for same has been made in these bills of quantities. The contractor is to note that should he fail to appoint an independent AIA, any and all consequent delays and damages will be for his own account."]
[]
[null,"TEMPORARY BARRIERS, SCREENS, ETC"]
[]
[null,"Temporary parkhome units"]
[]
[null,"Provide temporary parkhomes on site for educational facilities during the construction phase as herewith measured, including levelling, positioning on site and connection to an electrical supply including issuing compliance certificates"]
[]
[null,"Parkhomes are to be standard classroom size minimum 7 x 7m or nearest size"]
[]
[1,"Provision of parkhome for a period of 8 months","No",5,null,{"$f":"D81*E81","v":0}]
[]
[2,"Provision of two tier steps for 8 months","No",5,null,{"$f":"D83*E83","v":0}]
[]
[3,"Provision of electrical compliance certificates for parkhomes","No",5,null,{"$f":"D85*E85","v":0}]
[]
[4,"Transport to and from site of parkhomes as per distance between supplier and site per return trip","TRIP",5,null,{"$f":"D87*E87","v":0}]
[]
[null,"TEMPORARY ROOF PROTECTION"]
[]
[null,"The Contractor will be held responsible for all damage, howsoever caused, to finishes inside rooms where the existing roof coverings have been removed and he must make good all damage at his own expense to the approval of the Employer"]
[]
[5,"Supply and install temporary waterproofing and weatherproof protection to buildings in the form of uPVC underlay or tarpaulin where roofing and related items have been removed during construction whereby exposing buildings, including the relocation of the protection to various blocks within the works as area. The contractor to allow for maintenance of the waterproofing during periods of exposure to classrooms as well the reuse and reallocation to the blocks as per the contracts construction programme. All double handling will be deemed to be included in the rates based on the contractor's tender stage construction programme","m2",617,null,{"$f":"D93*E93","v":0}]
[]
[null,"REMOVAL OF EXISTING WORK"]
[]
[null,"Breaking up and removing reinforced concrete including cutting off and removing reinforcement and cart away"]
[]
[6,"100mm Thick surface beds","m2",789,null,{"$f":"D99*E99","v":0}]
[]
[null,"Taking out and removing doors, windows, etc., including thresholds, sills, etc. (building up openings and making good finishes elsewhere)"]
[]
[7,"Timber single door and frame size 900 x 2100mm high","No",14,null,{"$f":"D103*E103","v":0}]
[]
[null,"Note: Tenderers are referred to the foregoing supplementary preambles within this trade when pricing the following item (removal of asbestos)"]
[]
[null,"Taking down and removal of Asbestos by Specialist"]
[]
[8,"Pitched asbestos roof 16 000 x 10 000 x 1500mm high overall including roof covering, timber trusses and purlins, ceilings and cornices, eaves soffit covering, fascias, barge boards, gutters and rainwater pipes","No",1,null,{"$f":"D109*E109","v":0}]
[]
[9,"Pitched asbestos roof 15 000 x 11 000 x 1500mm high overall including roof covering, timber trusses and purlins, ceilings and cornices, eaves soffit covering, fascias, barge boards, gutters and rainwater pipes","No",1,null,{"$f":"D111*E111","v":0}]
[]
[null,"Taking down and removing roofs, floors, panelling, ceilings, partitions, etc"]
[]
[10,"Pitched corrugated iron roof 24 000 x 10 000 x 800mm high overall including roof covering, timber trusses and purlins, eaves soffit covering, fascias, barge boards, gutters and rainwater pipes","No",1,null,{"$f":"D115*E115","v":0}]
[]
[11,"Pitched corrugated iron roof 32 000 x 10 000 x 800mm high overall including roof covering, timber trusses and purlins, eaves soffit covering, fascias, barge boards, gutters and rainwater pipes","No",1,null,{"$f":"D117*E117","v":0}]
[]
[12,"Pitched corrugated iron roof 29 000 x 12 000 x 800mm high overall including roof covering, timber trusses and purlins, eaves soffit covering, fascias, barge boards, gutters and rainwater pipes","No",1,null,{"$f":"D119*E119","v":0}]
[]
[null,"Taking out and removing glass and mirrors"]
[]
[13,"Glass from steel windows including cleaning out rebates and preparing for new glass","m2",5,null,{"$f":"D123*E123","v":0}]
[]
[null,"Taking out and removing ironmongery"]
[]
[14,"Make good existing glazed steel window approximately 900mm x 1200mm high including sanding down thoroughly, applying metal primer and two coats gloss enamel paint, replacing broken glazing, overhauling, adjusting and servicing existing ironmongery to leave complete unit in a perfect condition","No",58,null,{"$f":"D127*E127","v":0}]
[]
[15,"Remove existing chalkboards approximately 4800 x 1200mm high, including fixings, etc. and cart off site","No",9,null,{"$f":"D129*E129","v":0}]
[]
[16,"Remove existing pinning board approximately 1800 x 2800mm high, including fixings, etc. and cart off site","No",9,null,{"$f":"D131*E131","v":0}]
[]
[null,"Hacking up/off and removing granolithic, screeds, plaster, etc from concrete or brickwork and preparing surfaces for new screeds, plaster, etc"]
[]
[17,"25mm Screed from floors","m2",165,null,{"$f":"D135*E135","v":0}]
[]
[null,"MAKING GOOD OF FINISHES ETC"]
[]
[18,"Remove 100mm width of plaster on either side of crack, rake out crack: 6mm X 6mm deep, clean out all loose material and repair crack using Prostruct 506 Flexicoat polymer modified cementitious coating or similar approved, to Manufacturer’s specification","m",75,null,{"$f":"D139*E139","v":0}]
[]
[null,"Making good untinted granolithic"]
[]
[19,"Floors in patches","m2",165,null,{"$f":"D143*E143","v":0}]
[]
[null,"Making good internal cement plaster"]
[]
[20,"Walls in patches","m2",541,null,{"$f":"D147*E147","v":0}]
[]
[null,"Making good external cement plaster"]
[]
[21,"Walls in patches","m2",288,null,{"$f":"D151*E151","v":0}]
[]
["Bill No. 2","Carried to Summary",{"$nulls":3},{"$f":"SUM(F72:F152)","v":0}]
[]
[null,"BILL NO. 3"]
[]
[null,"EARTHWORKS (PROVISIONAL)"]
[]
[null,"(CPAP WORK GROUP NO. 104 UNLESS OTHERWISE STATED)"]
[]
[null,"Key:                          Location Description  \nA                               Block A (Admin & 2 classroom) \nB                               Block B (2 classroom) \nC                               Block C (4 classroom) \nD                               Block D (3 classroom) \nE                               Kitchen \nF                               External works \nG                               General "]
[]
[null,"PREAMBLES"]
[]
[null,"The tenderer is referred to the relevant clauses in the Standard Preambles for Trades 2008 which are incorporated at the back of these Bills of Quantities."]
[]
[null,"SUPPLEMENTARY PREAMBLES"]
[]
[null,"Nature of ground"]
[]
[null,"The nature of the ground is assumed to be loose sandy material, therefore 'earth', but possibly interspersed with 'soft rock' or 'hard rock'"]
[]
[null,"Excavation for working space in rock"]
[]
[null,"Notwithstanding clause 11 page 8 of the Standard System of Measuring Building Work, excavation for working space in rock will be measured in cubic metres to the extent executed and given as 'extra over' bulk excavation or trench and hole excavation as the case may be"]
[]
[null,"Carting away of excavated material"]
[]
[null,"Descriptions of carting away of excavated material shall be deemed to include loading excavated material onto trucks directly from the excavations or, alternatively, from stock piles situated on the building site"]
[]
[null,"Filling"]
[]
[null,"Notwithstanding the reference to prescribed multiple handling in clause 1 page 6 of the Standard System of Measuring Building Work, prices for filling and backfilling shall include for all selection and any necessary multiple handling of material"]
[]
[null,"Testing"]
[]
[null,"Prices for filling are to include for all necessary density tests in accordance with SANS 10400"]
[]
[null,"EXCAVATION, FILLING, ETC OTHER THAN BULK"]
[]
[null,"Excavation in earth not exceeding 2m deep"]
[]
[1,"Reduced levels under floors","m3",118,null,{"$f":"D193*E193","v":0}]
[]
[null,"Extra over trench and hole excavations in earth for excavation in"]
[]
[2,"Soft rock","m3",11,null,{"$f":"D197*E197","v":0}]
[]
[null,"Extra over all excavations for carting away"]
[]
[3,"Surplus material from excavations and/or stock piles on site to a dumping site to be located by the contractor","m3",118,null,{"$f":"D201*E201","v":0}]
[]
[null,"Earth filling supplied by the contractor compacted to 98% Mod AASHTO density"]
[]
[4,"G5 material under floors","m3",118,null,{"$f":"D205*E205","v":0}]
[]
[null,"Compaction of surfaces"]
[]
[5,"Compaction of ground surface under floors etc including scarifying for a depth of 150mm, breaking down oversize material, adding suitable material where necessary and compacting to 95% Mod AASHTO density","m2",789,null,{"$f":"D209*E209","v":0}]
[]
[null,"Prescribed density tests on filling"]
[]
[6,"\"Modified AASHTO Density\" test","No",8,null,{"$f":"D213*E213","v":0}]
[]
[null,"SOIL POISONING"]
[]
[null,"Soil insecticide"]
[]
[7,"Under floors etc including forming and poisoning shallow furrows against foundation walls etc, filling in furrows and ramming","m2",789,null,{"$f":"D219*E219","v":0}]
[]
["Bill No. 3","Carried to Summary",{"$nulls":3},{"$f":"SUM(F185:F220)","v":0}]
[]
[null,"BILL NO. 4"]
[]
[null,"CONCRETE, FORMWORK AND REINFORCEMENT"]
[]
[null,"(CPAP WORK GROUP NO. 110 UNLESS OTHERWISE STATED)"]
[]
[null,"Key:                          Location Description  \nA                               Block A (Admin & 2 classroom) \nB                               Block B (2 classroom) \nC                               Block C (4 classroom) \nD                               Block D (3 classroom) \nE                               Kitchen \nF                               External works \nG                               General "]
[]
[null,"PREAMBLES"]
[]
[null,"The tenderer is referred to the relevant clauses in the Standard Preambles for Trades 2008 which are incorporated at the back of these Bills of Quantities."]
[]
[null,"SUPPLEMENTARY PREAMBLES"]
[]
[null,"Cost of tests "]
[]
[null,"The costs of making, storing and testing of concrete test cubes as required under clause 7 Tests of SABS 1200 G shall include the cost of providing cube moulds necessary for the purpose, for testing costs and for submitting reports on the tests to the principal agent. The testing shall be undertaken by an independent firm or institution nominated by the contractor to the approval of the principal agent. (Test cubes are measured separately) "]
[]
[null,"Formwork "]
[]
[null,"Descriptions of formwork shall be deemed to include use and waste only (except where described as 'left in' or 'permanent'), for fitting together in the required forms, wedging, plumbing and fixing to true angles and surfaces as necessary to ensure easy release during stripping and for reconditioning as necessary before re\u0002use.The vertical strutting shall be carried down to such construction as is sufficiently strong to afford the required support without damage and shall remain in position until the newly constructed work is able to support itself. Formwork to soffits of solid slabs etc. shall be deemed to be to slabs not exceeding 250mm thick unless otherwise described. Formwork to soffits of slabs, beams, etc. shall be deemed to be propped up exceeding 1,5m and not exceeding 3,5m high unless otherwise described.Formwork to sides of bases, pile caps, ground beams, etc. will only be measured where it is prescribed by the engineer for design reasons. Formwork necessitated by irregularity or collapse of excavated faces will not be measured and the cost thereof shall be deemed to be included in the allowance for taking the risk of collapse of the sides of the excavations, provision for which is made in Earthworks."]
[]
[null,"REINFORCED CONCRETE CAST AGAINST EXCAVATED SURFACES"]
[]
[null,"25MPa/19mm concrete"]
[]
[1,"Surface beds and thickenings, etc cast in panels on waterproofing","m3",79,null,{"$f":"D249*E249","v":0}]
[]
[null,"TEST BLOCKS"]
[]
[2,"Making and testing 150 x 150 x 150mm concrete strength test cube (Provisional)","Sets",4,null,{"$f":"D253*E253","v":0}]
[]
[null,"CONCRETE SUNDRIES"]
[]
[null,"Finishing top surfaces of concrete smooth with a power float"]
[]
[3,"Surface beds, slabs, etc to falls","m2",789,null,{"$f":"D259*E259","v":0}]
[]
[null,"MOVEMENT JOINTS ETC"]
[]
[null,"Two sheets of masonite with smooth surfaces as slip joints between horizontal concrete and brick surfaces including cement mortar bed"]
[]
[4,"Not exceeding 300mm wide","m",161,null,{"$f":"D265*E265","v":0}]
[]
[null,"Expansion joints with bitumen impregnated softboard between vertical concrete and brick surfaces"]
[]
[5,"12mm Joints not exceeding 300mm high","m",177,null,{"$f":"D269*E269","v":0}]
[]
[null,"Saw cut joints"]
[]
[6,"5 x 30mm Saw cut joints in top of concrete","m",92,null,{"$f":"D273*E273","v":0}]
[]
[null,"REINFORCEMENT (PROVISIONAL) (CPAP WORK Group No. 114)"]
[]
[null,"Fabric reinforcement"]
[]
[7,"Type Ref. 193 fabric reinforcement in concrete surface beds, slabs, etc","m2",789,null,{"$f":"D279*E279","v":0}]
[]
["Bill No. 4","Carried to Summary",{"$nulls":3},{"$f":"SUM(F245:F280)","v":0}]
[]
[null,"BILL NO. 5"]
[]
[null,"MASONRY"]
[]
[null,"(CPAP WORK GROUP NO. 116 UNLESS OTHERWISE STATED)"]
[]
[null,"Key:                          Location Description  \nA                               Block A (Admin & 2 classroom) \nB                               Block B (2 classroom) \nC                               Block C (4 classroom) \nD                               Block D (3 classroom) \nE                               Kitchen \nF                               External works \nG                               General "]
[]
[null,"PREAMBLES"]
[]
[null,"The tenderer is referred to the relevant clauses in the Standard Preambles for Trades 2008 which are incorporated at the back of these Bills of Quantities."]
[]
[null,"SUPPLEMENTARY PREAMBLES"]
[]
[null,"Proprietary items or materials"]
[]
[null,"Proprietary items or materials where specified are to be of the brand specified or other approved by the Representative / Agent"]
[]
[null,"BRICKWORK"]
[]
[null,"Sizes in description:"]
[]
[null,"Where sizes in descriptions are given in brick units, 'one brick' shall represent the length and 'half brick' the width of a brick"]
[]
[null,"Hollow walls:"]
[]
[null,"Descriptions of hollow walls shall be deemed to include leaving every fifth perpend of the bottom course of the external skin open as a weep hole"]
[]
[null,"Bagged and sealed walls:"]
[]
[null,"Walls in two skins described as 'bagged and sealed' shall be deemed to include having the outer face of the inner skin bagged with 1:6 cement and sand mixture and sealed with two coats bitumen emulsion waterproofing coating"]
[]
[null,"Face bricks:"]
[]
[null,"Bricks shall be ordered timeously to obtain uniformity in size and colour"]
[]
[null,"Pointing:"]
[]
[null,"Descriptions of recessed pointing to fair face brickwork and face brickwork shall be deemed to include square recessed, hollow recessed, weathered pointing, etc."]
[]
[null,"SUPERSTRUCTURE"]
[]
[null,"Brickwork of NFP bricks in class II mortar"]
[]
[1,"One brick walls","m2",231,null,{"$f":"D327*E327","v":0}]
[]
[null,"BRICKWORK SUNDRIES"]
[]
[null,"Brickwork reinforcement"]
[]
[2,"150mm Wide reinforcement built in horizontally","m",736,null,{"$f":"D333*E333","v":0}]
[]
[null,"Galvanised wire ties etc."]
[]
[3,"4mm Diameter roof tie 2000mm girth bent double, with one end shot pinned to concrete beam and the other end fixed to timber","No",222,null,{"$f":"D337*E337","v":0}]
[]
["Bill No. 5","Carried to Summary",{"$nulls":3},{"$f":"SUM(F321:F338)","v":0}]
[]
[null,"BILL NO. 6"]
[]
[null,"WATERPROOFING"]
[]
[null,"(CPAP WORK GROUP NO. 120 UNLESS OTHERWISE STATED)"]
[]
[null,"Key:                          Location Description  \nA                               Block A (Admin & 2 classroom) \nB                               Block B (2 classroom) \nC                               Block C (4 classroom) \nD                               Block D (3 classroom) \nE                               Kitchen \nF                               External works \nG                               General "]
[]
[null,"PREAMBLES"]
[]
[null,"The tenderer is referred to the relevant clauses in the Standard Preambles for Trades 2008 which are incorporated at the back of these Bills of Quantities."]
[]
[null,"SUPPLEMENTARY PREAMBLES"]
[]
[null,"Proprietary items or materials"]
[]
[null,"Proprietary items or materials where specified are to be of the brand specified or other approved by the Representative / Agent"]
[]
[null,"DAMP-PROOFING OF WALLS AND FLOORS"]
[]
[null,"One layer of 375 micron \"Consol Plastics Brikgrip DPC\" or equally approved embossed damp proof course"]
[]
[1,"In walls","m2",15,null,{"$f":"D363*E363","v":0}]
[]
[null,"One layer of 250 micron \"Consol Plastics Gunplas USB Green\" or equally approved waterproof sheeting sealed at laps with \"Gunplas Pressure Sensitive Tape\""]
[]
[2,"Under surface beds","m2",789,null,{"$f":"D367*E367","v":0}]
[]
[null,"JOINT SEALANTS ETC"]
[]
[null,"Two-part grey polysulphide sealing compound including backing cord, bond breaker, primer, etc"]
[]
[3,"5 x 10mm In saw cut joints in floors","m",92,null,{"$f":"D373*E373","v":0}]
[]
[4,"12  x 12mm In expansion joints in floors including raking out expansion joint filler as necessary","m",177,null,{"$f":"D375*E375","v":0}]
[]
["Bill No. 6","Carried to Summary",{"$nulls":3},{"$f":"SUM(F359:F376)","v":0}]
[]
[null,"BILL NO. 7"]
[]
[null,"ROOF COVERINGS ETC"]
[]
[null,"(CPAP WORK GROUP NO. 124 UNLESS OTHERWISE STATED)"]
[]
[null,"Key:                          Location Description  \nA                               Block A (Admin & 2 classroom) \nB                               Block B (2 classroom) \nC                               Block C (4 classroom) \nD                               Block D (3 classroom) \nE                               Kitchen \nF                               External works \nG                               General "]
[]
[null,"PREAMBLES"]
[]
[null,"The tenderer is referred to the relevant clauses in the Standard Preambles for Trades 2008 which are incorporated at the back of these Bills of Quantities."]
[]
[null,"SUPPLEMENTARY PREAMBLES"]
[]
[null,"Proprietary items or materials"]
[]
[null,"Proprietary items or materials where specified are to be of the brand specified or other approved by the Representative / Agent"]
[]
[null,"Sheeting:"]
[]
[null,"The roof sheeting shall be 0.58mm thick full hard IBR profile galvanised mild steel or other approved roof sheets, roll formed in continuous lengths and cut to length by a pneumatic cut-off process. A certificate verifying compliance to all current SANS codes in respect to galvanised sheeting shall be issued by the manufacturer"]
[]
[null,"Finishing of sheets:"]
[]
[null,"The paint finish shall be colour plus on one side and standard grey finish on the other side"]
[]
[null,"Fixing of sheets:"]
[]
[null,"The roof sheeting shall be laid in long lengths, narrow flutes outermost, with single flute sidelaps facing away from prevailing wind. All sheets shall be secured to timber purlins utilising approved roofing screws in strict accordance to the manufacturers instructions. Sheeting is to be drilled and not punched, with side laps filled with approved Mastic sealant. Sheeting is to protrude a minimum of 50mm from ends of rafters"]
[]
[null,"Flashings:"]
[]
[null,"Flashings shall be approved by the manufacturer and fixed to the sheeting with approved fixings. Prior to flashings being fixed, all troughs at the apex shall be stop-ended to the full depth of the sheet in order to prevent any penetration of wind driven water. The trough shall be lipped at the eaves end to form a drip. Flashing flanges shall be notched to the sheet profile where necessary. Care shall be taken to ensure that no sheeting or flashing will be cut with abrasive disc on roof surface in order to prevent steel spatter from penetrating colour coated areas"]
[]
[null,"Erection:"]
[]
[null,"Every precaution shall be taken to prevent damage to roof sheets during all stages of construction. Duck boards should be used when necessary to protect the sheeting from damage. Sheeting which has become deformed or damaged in any way, shall be replaced, at no additional cost to the contract"]
[]
[null,"Safety:"]
[]
[null,"The contractor shall exercise special care when handling long length sheeting, particularly in windy conditions. Should work be interrupted for any reason, all loose sheeting and incomplete sections must be adequately secured against possible movement by wind and gravity"]
[]
[null,"Guarantee:"]
[]
[null,"The manufacturer shall comply with ISO9002 Quality Management System. Sheeting shall be laid in strict accordance with manufacturers specifications by an approved contractor. A written and approved five (5) year guarantee of site workmanship and water tightness shall be issued after final inspection of roof sheets by the manufacturer"]
[]
[null,"TROUGHED METAL SHEETING AND ACCESSORIES"]
[]
[null,"0.58mm Thick galvanized \"Colourbond\" IBR profile metal sheeting or equal approved sheeting, colour to the determined on site, fixed to timber purlins with and including approved roofing screws with 26mm diameter galvanised washers and rubber gasket (timber purlins measured elsewhere) and fixed strictly in accordance with the manufacturer's instructions "]
[]
[1,"Roof covering with pitch not exceeding 25 degrees","m2",1299,null,{"$f":"D429*E429","v":0}]
[]
[2,"Ridge capping 462mm girth","m",116,null,{"$f":"D431*E431","v":0}]
[]
[3,"Side wall flashing 462mm girth","m",232,null,{"$f":"D433*E433","v":0}]
[]
[4,"Counter flashing 185mm girth","m",112,null,{"$f":"D435*E435","v":0}]
[]
[5,"Apex flashing 660mm girth","m",112,null,{"$f":"D437*E437","v":0}]
[]
[6,"Hot dip galvanised metal polyclosures to under ridge capping and eaves","m",228,null,{"$f":"D439*E439","v":0}]
[]
[7,"Sondor IBR pattern polyclosure under ridge capping and eaves","m",228,null,{"$f":"D441*E441","v":0}]
[]
[8,"Extra over roof sheet for fixing every crown at eaves","m",112,null,{"$f":"D443*E443","v":0}]
[]
[9,"Extra over for fixing screws at every ridge","m",216,null,{"$f":"D445*E445","v":0}]
[]
[null,"ROOF AND WALL INSULATION"]
[]
[null,"\"Super Sisalation Heavy Industrial Grade 430\" or equally approved - Double sided reflective foil laminate incorporating layers of kraft paper and reinforcing scrim, laminated together with low density polyethylene (293gsm)"]
[]
[10,"Insulation laid taut over timber rafters (at approximately 1200mm centres) and fixed concurrent with tiling battens, purlins, etc","m2",1114,null,{"$f":"D451*E451","v":0}]
[]
["Bill No. 7","Carried to Summary",{"$nulls":3},{"$f":"SUM(F424:F452)","v":0}]
[]
[null,"BILL NO. 8"]
[]
[null,"CARPENTRY AND JOINERY"]
[]
[null,"(CPAP WORK GROUP NO. 126 UNLESS OTHERWISE STATED)"]
[]
[null,"Key:                          Location Description  \nA                               Block A (Admin & 2 classroom) \nB                               Block B (2 classroom) \nC                               Block C (4 classroom) \nD                               Block D (3 classroom) \nE                               Kitchen \nF                               External works \nG                               General "]
[]
[null,"PREAMBLES"]
[]
[null,"The tenderer is referred to the relevant clauses in the Standard Preambles for Trades 2008 which are incorporated at the back of these Bills of Quantities."]
[]
[null,"SUPPLEMENTARY PREAMBLES"]
[]
[null,"Fixing:"]
[]
[null,"Items described as 'nailed' shall be deemed to be fixed with hardened steel nails or pins, or to be shot-pinned, to brickwork or concrete"]
[]
[null,"Items described as 'plugged' shall be deemed to include screwing to fibre, plastic or metal plugs at not exceeding 500mm centres, and where described as 'bolted', the bolts have been given elsewhere"]
[]
[null,"Joinery:"]
[]
[null,"Descriptions of frames shall be deemed to include frames, transomes, rails, etc."]
[]
[null,"Descriptions of hardwood joinery shall be deemed to include sinking and pelleting heads and nuts of bolts"]
[]
[null,"Decorative thermosetting plastic laminate covering:"]
[]
[null,"Laminate covering shall be glued under pressure and edge strips of same shall be butt jointed at junctions with adjacent similar finish"]
[]
[null,"Prefabricated plate nailed timber roof truss contruction:"]
[]
[null,"NOTE: The following is applicable in respect of roof trusses:"]
[]
[null,"The Contractor shall allow for all items deemed necessary for the proper design, fabrication and erection of the roof trusses, bracing, etc."]
[]
[null,"The materials and design of the roof construction shall be in accordance with the relevant edition of the South African National Standards (SANS) and the Standard Building Regulations (SBR)"]
[]
[null,"The design of trusses and permanent bracing shall be carried out under the control of a registered professional engineer who shall provide the requisite certificate of stability on completion of the roof contruction. All calculations and drawing, including a key plan of each building showing the position of each type of member shall be submitted timeously to the consulting Structural Engineer for his approval before fabrication is commenced"]
[]
[null,"Prices are to include for the provision of adequate temporary bracing during construction to the approval of the Departmental Engineer"]
[]
[null,"The dimensions in the descriptions of the trusses are nominal and actual measurements are to be obtained from the architect and/or the site before fabrication commences"]
[]
[null,"Trusses must be designed in accordance with the environmental conditions of the area"]
[]
[null,"The following roof trusses are to a pitch not exceeding 25 degrees (unless otherwise stated) spaced at approximately 1200mm centres and are to receive 0,8mm thick IBR profile roof sheets on timber purlins and a nailed up ceiling under"]
[]
[null,"Pretreatment of timber:"]
[]
[null,"This service falls within the areas defined in the National Building Regulations for Treatment of Timber against insect pest affecting softwood fixed permanently in all buildings"]
[]
[null,"The Regulations require that timber be treated in terms of the relevant SANS. Tenderers are to make allowance in their rates"]
[]
[null,"Prefabricated roof trusses, etc:"]
[]
[null,"All timber roof trusses including nail-plated trusses and bolted trusses with lapped members must comply with SANS"]
[]
[null,"Prices for roof trusses are to include for all temporary bracing and supports and for all necessary top and bottom chord bracing, wind bracing and runners where required and overhanging ends are to be wrot faced all round"]
[]
[null,"Plate nailed timber roof truss construction:"]
[]
[null,"The following is applicable in respect of roof trusses: Trusses are at maximum 1200mm centres. Roof covering is 0,8mm thick IBR profile roof sheets on timber purlins. Ceilings are plasterboard on softwood brandering. The dimensions in the descriptions of the trusses are nominal and actual measurements are to be obtained from the Architect and/or the site before design or fabrication commences"]
[]
[null,"PREFABRICATED ROOF TRUSSES, ETC."]
[]
[null,"The following in plate nailed timber roof trusses with pitch not exceeding 25 degrees from an approved supplier, delivered to site, hoisted into position, fixed and braced on timber wall plates to SABS 0243:"]
[]
[null,"Prefabricated plate nailed timber roof truss construction"]
[]
[null,"The following is applicable in respect of roof trusses:"]
[]
[null,"Trusses are at maximum 1200mm centres Roof covering is \"0.58mm Thick galvanized \"Colourbond\" IBR profile metal sheeting or equal approved sheeting on purlins. The references given in the descriptions are to the respective types of trusses. The dimensions in the descriptions of the trusses are nominal and actual measurements are to be obtained from the architect and/or the site before design or fabrication commences"]
[]
[1,"Design, supply and install roof truss system size complete and in accordance with SANS, including cross battens at hips, valleys, longitudinal bracing, etc. all in accordance with the specifications to building size approximately 16 000mm x 10 000mm on plan and with a clear span between walls approximately 7 500mm ( approximate on flat 160m2 ) (17.5 degree pitch)","No",1,null,{"$f":"D529*E529","v":0}]
[]
[2,"Design, supply and install roof truss system size complete and in accordance with SANS, including cross battens at hips, valleys longitudinal bracing, etc. all in accordance with the specifications to building size approximately 15 000mm x 11 000mm on plan and with a clear span between walls approximately 7 500mm ( approximate on flat 165m2 ) (17.5 degree pitch)","No",1,null,{"$f":"D531*E531","v":0}]
[]
[3,"Design, supply and install roof truss system size complete and in accordance with SANS, including cross battens at hips, valleys, longitudinal bracing, etc. all in accordance with the specifications to building size approximately 24 000mm x 10 000mm on plan and with a clear span between walls approximately 7 500mm ( approximate on flat 240m2 ) (17.5 degree pitch)","No",1,null,{"$f":"D533*E533","v":0}]
[]
[4,"Design, supply and install roof truss system size complete and in accordance with SANS, including cross battens at hips, valleys longitudinal bracing, etc. all in accordance with the specifications to building size approximately 32 000mm x 10 000mm on plan and with a clear span between walls approximately 7 500mm ( approximate on flat 320m2 ) (17.5 degree pitch)","No",1,null,{"$f":"D535*E535","v":0}]
[]
[5,"Design, supply and install roof truss system size complete and in accordance with SANS, including cross battens at hips, valleys, longitudinal bracing, etc. all in accordance with the specifications to building size approximately 29 000mm x 12 000mm on plan and with a clear span between walls approximately 7 500mm ( approximate on flat 348m2 ) (17.5 degree pitch)","No",1,null,{"$f":"D537*E537","v":0}]
[]
[6,"Provide manufacture and installation certificates (TR1 and TR2), to be supplied by the contractor and approved by the Consulting Structural Engineer after manufacture and installation respectively","Item",5,null,{"$f":"D539*E539","v":0}]
[]
[null,"ROOFS ETC"]
[]
[null,"Sawn softwood"]
[]
[7,"38 x 114mm Wall plates","m",232,null,{"$f":"D545*E545","v":0}]
[]
[8,"38 x 114mm Longitudinal bracing","m",77,null,{"$f":"D547*E547","v":0}]
[]
[9,"50 x 76mm Purlins","m",1856,null,{"$f":"D549*E549","v":0}]
[]
[10,"76 x 76mm Splayed purlins","m",464,null,{"$f":"D551*E551","v":0}]
[]
[null,"Sundries"]
[]
[11,"Wrought faces on sawn timbers","m2",21,null,{"$f":"D555*E555","v":0}]
[]
[12,"Two coats creosote on sawn timbers","m2",10,null,{"$f":"D557*E557","v":0}]
[]
[13,"600mm Long wrought end to 38 x 114mm sawn timber and splayed cut","No",198,null,{"$f":"D559*E559","v":0}]
[]
[14,"\"Teco\" or equally approved hurricane clips","No",1584,null,{"$f":"D561*E561","v":0}]
[]
[15,"2.5mm Diameter galvanised wire tie 400mm girth wrapped around rafter and purlin with ends tied together","No",1584,null,{"$f":"D563*E563","v":0}]
[]
[null,"DOORS ETC"]
[]
[null,"Meranti doors hung to steel frame (Steel frame elsewhere measured)"]
[]
[16,"44mm Meranti framed ledged braced door with 44 x 146mm top rail and stiles, 22 x 108mm braces, 22 x 146mm lock rail, 22 x 222mm bottom rail, 22 x 70mm tongue in grove and v-jointed boarding. Size 813 x 2032mm high","No",14,null,{"$f":"D569*E569","v":0}]
[]
["Bill No. 8","Carried to Summary",{"$nulls":3},{"$f":"SUM(F527:F570)","v":0}]
[]
[null,"BILL NO. 9"]
[]
[null,"CEILINGS, PARTITIONS AND ACCESS FLOORING"]
[]
[null,"(CPAP WORK GROUP NO. 129 UNLESS OTHERWISE STATED)"]
[]
[null,"Key:                          Location Description  \nA                               Block A (Admin & 2 classroom) \nB                               Block B (2 classroom) \nC                               Block C (4 classroom) \nD                               Block D (3 classroom) \nE                               Kitchen \nF                               External works \nG                               General "]
[]
[null,"PREAMBLES"]
[]
[null,"The tenderer is referred to the relevant clauses in the Standard Preambles for Trades 2008 which are incorporated at the back of these Bills of Quantities."]
[]
[null,"SUPPLEMENTARY PREAMBLES"]
[]
[null,"Proprietary items or materials"]
[]
[null,"Proprietary items or materials where specified are to be of the brand specified or other approved by the Representative / Agent"]
[]
[null,"Fixing"]
[]
[null,"Items described as 'nailed' shall be deemed to be fixed with hardened steel nails or pins, or to be shot-pinned, to brickwork or concrete"]
[]
[null,"Items described as 'plugged' shall be deemed to include screwing to fibre, plastic or metal plugs at not exceeding 500mm centres, and where described as 'bolted', the bolts have been given elsewhere"]
[]
[null,"Ceilings"]
[]
[null,"Unless otherwise described ceilings shall be deemed to be horizontal"]
[]
[null,"Bulkheads"]
[]
[null,"Bulkheads are defined as those portions of ceilings which are stepped down from the general ceiling level in a particular room or area and which generally occur along the perimeter. Their purpose is either to conceal services or to create architectural features"]
[]
[null,"Bulkheads have only been described as such where they conform to the above definition and where the horizontal or vertical dimensions do not exceed 900mm. Where these dimensions are more than 900mm such portions of ceilings have been included in the appropriate general items of ceilings"]
[]
[null,"Unless otherwise described bulkheads shall be deemed to be horizontal along the length"]
[]
[null,"Steel components"]
[]
[null,"All steel components for ceilings, partitions, etc. are to be galvanised in accordance with SANS 121"]
[]
[null,"NAILED UP CEILINGS"]
[]
[null,"6mm \"Everite Nutec\" fibre-cement boards"]
[]
[1,"Ceilings including 38 x 38mm sawn softwood brandering at 350mm centres in one direction only to trusses (elsewhere) at 750mm centres","m2",202,null,{"$f":"D617*E617","v":0}]
[]
[null,"9,5mm \"Rhino\" gypsum plasterboard"]
[]
[2,"Ceilings  including 38 x 38mm  sawn  softwood  brandering at 600mm centres with cross brandering at joints, ends of sheets and at light fittings, etc","m2",704,null,{"$f":"D621*E621","v":0}]
[]
[3,"Extra  over  ceiling  for  800 x 800mm trap door of wrought softwood  rebated  framing  with  one sawn softwood cross brander covered with ceiling board and fitted flush in opening","No",13,null,{"$f":"D623*E623","v":0}]
[]
[null,"\"Everite Nucornice\" cornices"]
[]
[4,"75mm Coved polystyrene cornice","m",117,null,{"$f":"D627*E627","v":0}]
[]
[null,"\"Rhino\" gypsum plasterboard cornices"]
[]
[5,"75mm Coved cornices","m",388,null,{"$f":"D631*E631","v":0}]
[]
[null,"Sundries"]
[]
[null,"\"Isotherm\" or equally approved insulation"]
[]
[6,"100mm Insulation closely fitted and laid on top of brandering between roof timbers etc","m2",955,null,{"$f":"D637*E637","v":0}]
[]
["Bill No. 9","Carried to Summary",{"$nulls":3},{"$f":"SUM(F613:F638)","v":0}]
[]
[null,"BILL NO. 10"]
[]
[null,"FLOOR COVERINGS, PLASTIC LININGS, ETC"]
[]
[null,"(CPAP WORK GROUP NO. 130 UNLESS OTHERWISE STATED)"]
[]
[null,"Key:                          Location Description  \nA                               Block A (Admin & 2 classroom) \nB                               Block B (2 classroom) \nC                               Block C (4 classroom) \nD                               Block D (3 classroom) \nE                               Kitchen \nF                               External works \nG                               General "]
[]
[null,"PREAMBLES"]
[]
[null,"The tenderer is referred to the relevant clauses in the Standard Preambles for Trades 2008 which are incorporated at the back of these Bills of Quantities."]
[]
[null,"SUPPLEMENTARY PREAMBLES"]
[]
[null,"Proprietary items or materials"]
[]
[null,"Proprietary items or materials where specified are to be of the brand specified or other approved by the Representative / Agent"]
[]
[null,"Screed deviations are not to exceed 5mm over 3000mm"]
[]
[null,"Thoroughly clean down with SANS 10183:1-4 compliant diluted natural detergent and thoroughly rinse, allow to dry and apply 3 coats water based floor dressing compliant with SANS 1042. "]
[]
[null,"Remove all contaminates, clean down and apply TAL screed master, prime with TAL Floor Primer using pump method all by TAL contractor in accordance with the manufacturer's instructions"]
[]
[null,"Using \"Floorworx Self-Leveller\" when required, including all cutting, waste, and sealing with matt or gloss sealer."]
[]
[null,"FLOOR COVERINGS"]
[]
[null,"300 x 300 x 2.5mm Thick \"Floorflex\" or equally approved semi-flexible vinyl tiles manufactured in accordance with SANS 581 and laid in FloorworX No. 62 acrylic adhesive spread with a trowel fitted with an A2 notched blade at a rate of between 5.5m2 and 6.5m2 per litre on a previously prepared Class 1 sub floor in accordance with SANS 10070, using FloorworX Self Leveller when required, including all cutting and waste. The flooring must be rolled in both directions with an articulated 68kg three-sectional roller immediately after it has been laid into the adhesive"]
[]
[1,"On floors","m2",789,null,{"$f":"D671*E671","v":0}]
[]
[null,"SKIRTINGS, NOSINGS, ETC"]
[]
[null,"\"Marley \" or equally approved "]
[]
[2,"12mm anodised aluminium edge strip fixed to concrete","m",287,null,{"$f":"D677*E677","v":0}]
[]
[null,"POLISH, SEALERS, ETC"]
[]
[null,"\"Floorworx\" or equally approved "]
[]
[3,"Strip floor using \"Floorworx Stripper\", including scrubbing using a diluted solution of \"Floorworx Rinse\" and seal with three coats of \"Floorworx Silk Matt\" or \"Gloss Sealer\"","m2",789,null,{"$f":"D683*E683","v":0}]
[]
["Bill No. 10","Carried to Summary",{"$nulls":3},{"$f":"SUM(F669:F684)","v":0}]
[]
[null,"BILL NO. 11"]
[]
[null,"IRONMONGERY"]
[]
[null,"(CPAP WORK GROUP NO. 132 UNLESS OTHERWISE STATED)"]
[]
[null,"Key:                          Location Description  \nA                               Block A (Admin & 2 classroom) \nB                               Block B (2 classroom) \nC                               Block C (4 classroom) \nD                               Block D (3 classroom) \nE                               Kitchen \nF                               External works \nG                               General "]
[]
[null,"PREAMBLES"]
[]
[null,"The tenderer is referred to the relevant clauses in the Standard Preambles for Trades 2008 which are incorporated at the back of these Bills of Quantities."]
[]
[null,"SUPPLEMENTARY PREAMBLES"]
[]
[null,"Proprietary items or materials"]
[]
[null,"Proprietary items or materials where specified are to be of the brand specified or other approved by the Representative / Agent"]
[]
[null,"Finishes to ironmongery"]
[]
[null,"Where applicable finishes to ironmongery are indicated by suffixes in accordance with the following list: BS Satin bronze lacquered CH Chromium plated SC Satin chromium plated SE Silver enamelled GE Grey enamelled AS Anodised silver AB Anodised bronze AG Anodised gold ABL Anodised black PB Polished brass PL Polished and lacquered PT Epoxy coated SD Sanded"]
[]
[null,"HINGES, BOLTS, ETC"]
[]
[null,"\"Union\" or equally approved "]
[]
[1,"100mm Brass hinge","No",42,null,{"$f":"D713*E713","v":0}]
[]
[null,"LOCKS"]
[]
[null,"\"Union\" or equally approved "]
[]
[2,"\"2277-103 SS\" Three lever lockset","No",14,null,{"$f":"D719*E719","v":0}]
[]
[null,"\"Viro\" or equally approved "]
[]
[3,"30mm Padlock","No",14,null,{"$f":"D723*E723","v":0}]
[]
[null,"SUNDRIES"]
[]
[null,"\"Union\" or equally approved "]
[]
[4,"\"CZ8731SC\" door stop","No",14,null,{"$f":"D729*E729","v":0}]
[]
[null,"PINNING BOARDS, WRITING BOARDS, PROJECTION SCREENS, ETC"]
[]
[null,"\"Vitrex\" or equally approved "]
[]
[5,"Combi board with and including anodised aluminium frame, size 2000 x 1200mm high plugged","No",2,null,{"$f":"D735*E735","v":0}]
[]
[6,"2400 x 1200mm High, wall mounted aluminium framed pinning board ","No",9,null,{"$f":"D737*E737","v":0}]
[]
[7,"2420 x 1220mm fixed projection white board (non reflective) aluminium framed, magnetic surface (centre board) complete with (x2) 1210 x 1220mm swing leaf aluminium framed magnetic chalk boards (without any lines or graphics, etc) with heavy duty hinges and 2250mm one complete aluminium pen tray to the centre board","No",9,null,{"$f":"D739*E739","v":0}]
[]
[8,"Magnetic starter pack (1x full complete set) consisting of: 4 x White board markers (red, green, black, blue) 1 x Cleaning cloth1x Magnetic eraser1x Cleaning fluid 250ml1x Moulded magnets d day   ","No",9,null,{"$f":"D741*E741","v":0}]
[]
["Bill No. 11","Carried to Summary",{"$nulls":3},{"$f":"SUM(F707:F742)","v":0}]
[]
[null,"BILL NO. 12"]
[]
[null,"METALWORK"]
[]
[null,"(CPAP WORK GROUP NO. 136 UNLESS OTHERWISE STATED)"]
[]
[null,"Key:                          Location Description  \nA                               Block A (Admin & 2 classroom) \nB                               Block B (2 classroom) \nC                               Block C (4 classroom) \nD                               Block D (3 classroom) \nE                               Kitchen \nF                               External works \nG                               General "]
[]
[null,"PREAMBLES"]
[]
[null,"The tenderer is referred to the relevant clauses in the Standard Preambles for Trades 2008 which are incorporated at the back of these Bills of Quantities."]
[]
[null,"SUPPLEMENTARY PREAMBLES"]
[]
[null,"Proprietary items or materials"]
[]
[null,"Proprietary items or materials where specified are to be of the brand specified or other approved by the Representative / Agent"]
[]
[null,"Descriptions of bolts, anchors, etc.:"]
[]
[null,"Descriptions of bolts shall be deemed to include nuts and washers"]
[]
[null,"Descriptions of expansion anchors and bolts and chemical anchors and bolts shall be deemed to include nuts, washers and mortices in brickwork or concrete"]
[]
[null,"Items described as 'holed for bolt(s)' shall be deemed to exclude the bolts unless otherwise described"]
[]
[null,"Items described as 'plugged' shall be deemed to include screwing to fibre, plastic or metal plugs at not exceeding 600mm centres"]
[]
[null,"Hot dipped galvanising:"]
[]
[null,"The mass of hot dip galvanised steelwork has been calculated on the mass before galvanising and no allowance has been made for the additional mass of galvanising for which allowance must be made in pricing"]
[]
[null,"Unless otherwise stated, all steelwork described as galvanised shall be deemed to include for 'hot-dip' galvanising in accordance with the latest SANS standards"]
[]
[null,"WELDED GALVANISED SCREENS, GATES, ETC"]
[]
[null,"Screens and gates"]
[]
[1,"Purpose made single hot dipped galvanised mild steel gate, 1100mm x 2125mm formed of 40 x 60 x 3mm hollow sectioned frames and midrail, filled in with 12mm solid square vertical bars at 110mm centres welded to frame and fitted with 2no. Pin type gate hinges welded to frame and pad lock plates welded to gate and plugged to walls with and including expansion joints","No",14,null,{"$f":"D783*E783","v":0}]
[]
[null,"GALVANISED PRESSED STEEL DOOR FRAMES"]
[]
[null,"NOTE:  All door frames to be fitted with one and a half pair chromium plated on steel, brass butts with double nylon washers for each door leaf unless otherwise described and chromium plated striking plates"]
[]
[null,"1,2mm Double rebated frames suitable for one brick walls"]
[]
[2,"Frame for door 900 x 2100mm high ","No",14,null,{"$f":"D791*E791","v":0}]
[]
["Bill No. 12","Carried to Summary",{"$nulls":3},{"$f":"SUM(F780:F792)","v":0}]
[]
[null,"BILL NO. 13"]
[]
[null,"PLASTERING"]
[]
[null,"(CPAP WORK GROUP NO. 142 UNLESS OTHERWISE STATED)"]
[]
[null,"Key:                          Location Description  \nA                               Block A (Admin & 2 classroom) \nB                               Block B (2 classroom) \nC                               Block C (4 classroom) \nD                               Block D (3 classroom) \nE                               Kitchen \nF                               External works \nG                               General "]
[]
[null,"PREAMBLES"]
[]
[null,"The tenderer is referred to the relevant clauses in the Standard Preambles for Trades 2008 which are incorporated at the back of these Bills of Quantities."]
[]
[null,"SUPPLEMENTARY PREAMBLES"]
[]
[null,"Proprietary items or materials"]
[]
[null,"Proprietary items or materials where specified are to be of the brand specified or other approved by the Representative / Agent"]
[]
[null,"Method :"]
[]
[null,"The method to be used shall be either the monolithic method or the bonded method"]
[]
[null,"Preparation :"]
[]
[null,"For granolithic applied monolithically, the concrete floor shall be swept clean after bleeding of the concrete has ceased and the slab has begun to stiffen; any remaining bleed water shall be removed and the granolithic applied immediately thereafter. For granolithic to be bonded to the floor slab after it has hardened, the slab surface shall be hacked (preferably by mechanical means) until all laitance, dirt, oil, etc. is dislodged and swept clean of all loose matter. The slab shall then be wetted and kept damp for at least six hours before applying the granolithic"]
[]
[null,"Mix :"]
[]
[null,"Granolithic shall attain a compressive strength of at least 41MPa. The coarse aggregate shall comply with SANS 1083 and shall generally be capable of passing a 10mm mesh sieve. Where the thickness of the granolithic exceeds 25mm, the size of the coarse aggregate shall be increased to the maximum size compatible with the thickness of the granolithic"]
[]
[null,"Panels :"]
[]
[null,"Granolithic shall be laid in panels not exceeding 14m\\'b2 for monolithic finishes, not exceeding 9,5m\\'b2 for bonded finishes and not exceeding 6m\\'b2 for all external granolithic. Wherever possible, panels shall be square but at no time should the length of the panel exceed 1,5 times its width"]
[]
[null,"Where possible joints between panels shall be positioned over joints in the floor slab and shall be at least 3mm wide through the full thickness of the finish, separated by strips of wood or fibreboard and finished with V-joints"]
[]
[null,"Laying :"]
[]
[null,"Monolithic granolithic shall be applied to the partially set slab and thoroughly compacted and lightly wood floated to the required levels"]
[]
[null,"Bonded granolithic shall be applied to the slab after applying a 1:1 sand-and-cement slurry brushed over the surface and allowed to partially set before applying the granolithic. The granolithic shall be thoroughly compacted and lightly wood floated to the required levels"]
[]
[null,"After wood floating, the monolithic and bonded granolithic shall remain undisturbed until bleeding has ceased and the surface has stiffened. Any remaining bleed water and laitance shall then be removed and the surface steel trowelled or power floated"]
[]
[null,"Curing, seasoning and protection :"]
[]
[null,"Granolithic shall be covered with clean hessian with waterproof building foil over and kept wet for at least seven days after laying"]
[]
[null,"Colour :"]
[]
[null,"Coloured granolithic shall be tinted with an approved colouring pigment mixed into a true and even colour"]
[]
[null,"SCREEDS"]
[]
[null,"Screeds power floated on concrete"]
[]
[1,"25mm Thick on floors and landings","m2",165,null,{"$f":"D851*E851","v":0}]
[]
[null,"Screeds wood floated on concrete"]
[]
[2,"25mm Thick on floors and landings","m2",789,null,{"$f":"D855*E855","v":0}]
[]
["Bill No. 13","Carried to Summary",{"$nulls":3},{"$f":"SUM(F842:F856)","v":0}]
[]
[null,"BILL NO. 14"]
[]
[null,"PLUMBING AND DRAINAGE (PROVISIONAL)"]
[]
[null,"(CPAP WORK GROUP NO. 148 UNLESS OTHERWISE STATED)"]
[]
[null,"Key:                          Location Description  \nA                               Block A (Admin & 2 classroom) \nB                               Block B (2 classroom) \nC                               Block C (4 classroom) \nD                               Block D (3 classroom) \nE                               Kitchen \nF                               External works \nG                               General "]
[]
[null,"PREAMBLES"]
[]
[null,"The tenderer is referred to the relevant clauses in the Standard Preambles for Trades 2008 which are incorporated at the back of these Bills of Quantities."]
[]
[null,"SUPPLEMENTARY PREAMBLES"]
[]
[null,"Proprietary items or materials"]
[]
[null,"Proprietary items or materials where specified are to be of the brand specified or other approved by the Representative / Agent"]
[]
[null,"Wire gratings:"]
[]
[null,"Descriptions of gutter outlets etc. shall be deemed to include wire balloon gratings"]
[]
[null,"Stormwater channels:"]
[]
[null,"Descriptions of channels shall be deemed to include necessary excavation, surface preparation, compaction, etc., and disposal of surplus material on site :"]
[]
[null,"French drains:"]
[]
[null,"Descriptions of French drains shall be deemed to include excavation, stone filling graded from 300mm diameter at bottom to 75mm diameter at top, geofabric filter blanket over stone, 300mm earth filling over and disposal of surplus material on site :"]
[]
[null,"Septic tanks:"]
[]
[null,"Descriptions of proprietary type septic tanks shall be deemed to include excavation, bedding and jointing, concrete base slabs, jointing to drains and backfilling, compaction, etc. all in accordance with the manufacturer's instructions and disposal of surplus material on site"]
[]
[null,"Stainless steel basins, sinks, wash troughs, urinals, etc:"]
[]
[null,"Stainless steel for economy basins, domestic sinks and worktops shall be Type 430 (17/0)  Stainless steel for urinals, basins, quality sinks, wash troughs, institutional equipment, etc. shall be Type 304 (18/8)  Stainless steel for laboratory sinks, photographic equipment, etc. shall be Type 316 (18/8)  Units shall have standard aprons on all exposed edges and tiling keys against walls where applicable"]
[]
[null,"Sealing of edges:"]
[]
[null,"Outer edges of sinks, basins, baths, urinals, etc. are to be sealed against adjacent surfaces with approved silicone"]
[]
[null,"uPVC pipes and fittings:"]
[]
[null,"Sewer and drainage pipes and fittings shall be jointed and sealed with butyl rubber rings. Soil, waste and vent pipes and fittings shall be solvent weld jointed or sealed with butyl rubber rings"]
[]
[null,"uPVC pressure pipes and fittings:"]
[]
[null,"Pipes of 50mm diameter and smaller shall be plain ended with solvent welded uPVC loose sockets and fittings. Pipes of 63mm diameter and greater shall have sockets and spigots with push-in type integral rubber ring joints.  Bends shall be uPVC and all other fittings shall be cast iron, all with similar push-in type joints"]
[]
[null,"High density polyethylene (HDPe) pipes and fittings:"]
[]
[null,"Pipes shall be type IV and of the class specified with Plasson or Alprene compression fittings"]
[]
[null,"Polycop polypropylene pipes:"]
[]
[null,"Polypropylene pipes 54mm diameter and smaller shall be seamless copper coloured Class 16 pipes jointed with Fast-fuse heat welded thermoplastic or where so described Polylock compression fittings  Pipes shall be firmly fixed to walls, etc. with coloured nylon snap-in pipe clips with provision for accommodating thermal movement and jointed and fixed strictly in accordance with the manufacturer's instructions"]
[]
[null,"Copper pipes:"]
[]
[null,"Pipes shall be hard drawn and half-hard Maksal pipes of the class described.  Class 0 (thin walled hard drawn) pipes shall not be bent.  Class 1 (thin walled half-hard), Class 2 (half-hard) and Class 3 (heavy walled half-hard) pipes shall only be bent with benders with inner and outer formers.  Fittings to copper waste, vent and anti-syphon pipes, capillary solder fittings and compression fittings shall be 'Cobra Watertech' or equal approved type.  Capillary solder fittings shall comply with ISO 2016"]
[]
[null,"Copper pipes are to be installed in accordance with the latest revision of the Code of Practice for Copper Plumbing soldering techniques. Flux, solder, etc. to be strictly in accordance with the manufacturer's requirements with special attention to copper flux composition"]
[]
[null,"Reducing fittings:"]
[]
[null,"Where fittings have reducing ends or branches they are described as 'reducing' and only the largest end or branch size is given. Should the contractor wish to use other fittings and bushes or reducers he may do so on the understanding that no claim in this regard will be entertained"]
[]
[null,"Fixing of pipes:"]
[]
[null,"Unless specifically otherwise stated, descriptions of pipes shall be deemed to include fixing to walls, etc., casting in, building in or suspending not exceeding 1m below suspension level"]
[]
[null,"Paper wrapping to pipes:"]
[]
[null,"Pipes chased into brickwork must be wrapped with two layers of stout brown paper tied with wire.  Rates are to include for wrapping around joints and fittings"]
[]
[null,"Disinfection of water pipework:"]
[]
[null,"Water pipework is to be disinfected at completion in accordance with SANS"]
[]
[null,"Densyl petrolatum anti-corrosion tape as manufactured by Denso SA (Pty) Ltd:"]
[]
[null,"Pipes to be taped shall be coated with the appropriate primer and the tape shall be applied in the appropriate widths and with 25% overlaps. Couplings and fittings to pipes shall be taped in strict accordance with the manufacturer's instructions including mastic, tape, Layflat sheeting, securing of same, etc"]
[]
[null,"Prices for wrapping of pipes shall include for all work as described to couplings in the length"]
[]
[null,"Laying, backfilling, bedding, etc. of pipes:"]
[]
[null,"Pipes shall be laid and bedded in accordance with manufacturers' instructions and trenches shall be carefully backfilled"]
[]
[null,"Where no manufacturers' instructions exist, pipes shall be laid in accordance with SANS"]
[]
[null,"General:"]
[]
[null,"Descriptions of cast iron roof outlets shall be deemed to include joints to pipes and casting into concrete and shall include adaptors for joints to PVC pipes, etc.).  Descriptions of overflow pipes where measured in number, shall be deemed to include joints to cisterns and splay cut ends"]
[]
[null,"Descriptions of pipes laid in and including trenches and of inspection chambers, catchpits, etc. shall be deemed to include excavation, bedding, backfilling, compaction to a minimum of 98% Mod AASHTO density and disposal of surplus material off site"]
[]
[null,"Descriptions of service pipes and flexible connecting pipes shall be deemed to include connections to taps, cisterns, etc., steel pipes, copper pipes, etc"]
[]
[null,"Descriptions of WC pans, slop hoppers, etc. shall be deemed to include for joints to soil pipes (pan connectors are separately measured)"]
[]
[null,"As-built drawings:"]
[]
[null,"The contractor shall prepare an updated set of as-built drawings.  At completion of the contract the contractor shall hand these drawings to the principal agent for reproducing onto the originals for handing over to the employer (provision for allowance of as-built drawings elsewhere)"]
[]
[null,"RAINWATER DISPOSAL"]
[]
[null,"0.8mm Seamless aluminium"]
[]
[1,"150 x 150mm Box gutter aluminium white baked enamel finish fixed with concealed brackets ","m",232,null,{"$f":"D969*E969","v":0}]
[]
[2,"Extra over eaves gutter for stopped end","No",20,null,{"$f":"D971*E971","v":0}]
[]
[3,"Extra over eaves gutter for angle","No",20,null,{"$f":"D973*E973","v":0}]
[]
[4,"Extra over eaves gutter for outlet for 150 x 75mm pipe","No",20,null,{"$f":"D975*E975","v":0}]
[]
[5,"125 x 75mm Rainwater aluminium downpipes with white baked enamel finish ","m",50,null,{"$f":"D977*E977","v":0}]
[]
[6,"Extra over rainwater pipe for bend","No",40,null,{"$f":"D979*E979","v":0}]
[]
[7,"Extra over rainwater pipe for shoe","No",20,null,{"$f":"D981*E981","v":0}]
[]
["Bill No. 14","Carried to Summary",{"$nulls":3},{"$f":"SUM(F963:F982)","v":0}]
[]
[null,"BILL NO. 15"]
[]
[null,"GLAZING"]
[]
[null,"(CPAP WORK GROUP NO. 150 UNLESS OTHERWISE STATED) "]
[]
[null,"Key:                          Location Description  \nA                               Block A (Admin & 2 classroom) \nB                               Block B (2 classroom) \nC                               Block C (4 classroom) \nD                               Block D (3 classroom) \nE                               Kitchen \nF                               External works \nG                               General "]
[]
[null,"PREAMBLES"]
[]
[null,"The tenderer is referred to the relevant clauses in the Standard Preambles for Trades 2008 which are incorporated at the back of these Bills of Quantities."]
[]
[null,"SUPPLEMENTARY PREAMBLES"]
[]
[null,"Proprietary items or materials"]
[]
[null,"Proprietary items or materials where specified are to be of the brand specified or other approved by the Representative / Agent"]
[]
[null,"Float glass "]
[]
[null,"The term 'float glass' is used for monolithic annealed glass "]
[]
[null,"Laminated glass "]
[]
[null,"Laminated glass to have polyvinyl butyral (PVB) interlayer(s) "]
[]
[null,"GLAZING TO STEEL WITH PUTTY"]
[]
[null,"Note: Tenderers are referred to architect's drawings annexed to these bill of quantities. Glazing to conform with \"The South African Glass & Glazing Association (SAGGA)\" and shall comply with the National Building Regulations and Building Standards Act 103 of 1977 and SANS 10137 Code of Practice for the Installation of Glazing in Buildings"]
[]
[null,"6mm Clear toughened safety glass puttied in with steel window putty as per SANS 10400:N"]
[]
[1,"Panes exceeding 0,5m2 and not exceeding 2m2","m2",68,null,{"$f":"D1017*E1017","v":0}]
[]
[null,"TOPS, SHELVES, DOORS, MIRRORS, ETC"]
[]
[null,"6mm Silvered float glass copper backed mirrors with polished edges holed for and fixed with chromium plated dome capped mirror screws with rubber buffers to plugs in brickwork or concrete"]
[]
[2,"Mirror 550 x 550mm high","No",12,null,{"$f":"D1023*E1023","v":0}]
[]
[null,"Glazing Certificate"]
[]
[3,"Issue of AAAMSA Glass & Glazing Certificate by registered and authorised entity","Item",4,null,{"$f":"D1027*E1027","v":0}]
[]
["Bill No. 15","Carried to Summary",{"$nulls":3},{"$f":"SUM(F1013:F1028)","v":0}]
[]
[null,"BILL NO. 16"]
[]
[null,"PAINTWORK"]
[]
[null,"(CPAP WORK GROUP NO. 152 UNLESS OTHERWISE STATED)"]
[]
[null,"Key:                          Location Description  \nA                               Block A (Admin & 2 classroom) \nB                               Block B (2 classroom) \nC                               Block C (4 classroom) \nD                               Block D (3 classroom) \nE                               Kitchen \nF                               External works \nG                               General "]
[]
[null,"PREAMBLES"]
[]
[null,"The tenderer is referred to the relevant clauses in the Standard Preambles for Trades 2008 which are incorporated at the back of these Bills of Quantities."]
[]
[null,"SUPPLEMENTARY PREAMBLES"]
[]
[null,"Proprietary items or materials"]
[]
[null,"Proprietary items or materials where specified are to be of the brand specified or other approved by the Representative / Agent"]
[]
[null,"PAINTWORK ETC TO PREVIOUSLY PAINTED WORK"]
[]
[null,"Previously painted plastered surfaces"]
[]
[null,"Surfaces shall be thoroughly washed down and allowed to dry completely before any paint is applied. Blistered or peeling paint shall be completely removed and cracks shall be opened, filled with a suitable filler and finished smooth"]
[]
[null,"Previously painted metal surfaces "]
[]
[null,"Surfaces shall be thoroughly rubbed and cleaned down.  Blistered or peeling paint shall be completely removed down to bare metal"]
[]
[null,"Previously painted wood surfaces"]
[]
[null,"Surfaces shall be thoroughly cleaned down.  Blistered or peeling paint shall be completely removed and cracks and crevices shall be primed, filled with suitable filler and finished smooth"]
[]
[null,"COLOURS "]
[]
[null,"Colours, etc."]
[]
[null,"Unless otherwise described all paintwork shall be deemed to have a colour value in excess of 7 on the Munsell system in accordance with SANS 1091"]
[]
[null,"PREPARATORY WORK TO EXISTING WORK"]
[]
[null,"Previously painted plastered surfaces"]
[]
[null,"Surfaces shall be thoroughly washed down and allowed to dry completely before any paint is applied. Blistered or peeling paint shall be completely removed and cracks shall be opened, filled with a suitable filler and finished smooth"]
[]
[null,"PAINTWORK ETC TO PREVIOUSLY PAINTED WORK"]
[]
[null,"ON FLOATED PLASTER"]
[]
[null,"Prepare surfaces and remove all loose material, apply one coat \"Plascon or equally aproved Professional Plaster Prime (PP700)\" thinned 20% and two coats \"Plascon Egg Shell Enamel (PSB700)\" paint"]
[]
[1,"On internal walls","m2",1094,null,{"$f":"D1081*E1081","v":0}]
[]
[null,"Prepare and sand down existing surfaces and remove all loose material, and apply alkali resistant primer and two coats \"Micatex\" emulsion paint for exterior use"]
[]
[2,"On external walls","m2",1082,null,{"$f":"D1085*E1085","v":0}]
[]
[null,"ON METAL"]
[]
[null,"One coat primer, one undercoat and two coats \"Dulux Easigloss D189-0734\" gloss enamel paint (Colour to be approved by Project Manager)"]
[]
[3,"On roof sheeting","m2",168,null,{"$f":"D1091*E1091","v":0}]
[]
[null,"PAINTWORK ETC TO NEW WORK"]
[]
[null,"ON PLASTERBOARD"]
[]
[null,"Prepare surfaces and remove all loose material, apply one coat \"Plascon Merit Plaster Primer or equally aproved\" and two coats \"Plascon Velvaglo Polyurethane Enamel or equally aproved\" paint"]
[]
[4,"On ceilings and cornices","m2",753,null,{"$f":"D1099*E1099","v":0}]
[]
[null,"ON FIBRE-CEMENT"]
[]
[null,"Prepare surfaces and remove all loose material, apply one coat \"Plascon Merit Plaster Primer or equally aproved\" and two coats \"Plascon Velvaglo Polyurethane Enamel or equally aproved\" paint"]
[]
[5,"On ceilings and cornices","m2",202,null,{"$f":"D1105*E1105","v":0}]
[]
[null,"ON WOOD"]
[]
[null,"Spot, sand down and prepare wood surfaces and apply three coats \"Plascon Woodcare Woodcoat Polyurethane or equally aproved\" matt clear varnish"]
[]
[6,"On doors","m2",53,null,{"$f":"D1111*E1111","v":0}]
[]
[null,"Prepare surfaces and remove all loose material, apply one coat \"Plascon Merit Plaster Primer or equally aproved\" and two coats \"Plascon Velvaglo Polyurethane Enamel or equally aproved\" paint"]
[]
[7,"On trusses","m2",50,null,{"$f":"D1115*E1115","v":0}]
[]
[null,"ON METAL"]
[]
[null,"Hot dipped galvanised, primed with approved 2 coats \"Plascon Metal Galvanised Iron Primer - Code: GIP 1) steel alkyline primer and allow drying between the coats and 3 coats (Plascon Arcylic Paint  Wall and All Code: TWA Tint base) or equally approved. colour to Architect"]
[]
[8,"On door frames etc","m2",7,null,{"$f":"D1121*E1121","v":0}]
[]
[9,"Window frames, etc,","m2",103,null,{"$f":"D1123*E1123","v":0}]
[]
["Bill No. 16","Carried to Summary",{"$nulls":3},{"$f":"SUM(F1077:F1124)","v":0}]
[]
[null,"BILL NO. 17"]
[]
[null,"ELECTRICAL WORK (PROVISIONAL)"]
[]
[null,"(CPAP WORK GROUP NO. 160 UNLESS OTHERWISE STATED)"]
[]
[null,"PREAMBLES"]
[]
[null,"The tenderer is referred to the relevant clauses in the Standard Preambles for Trades 2008 which are incorporated at the back of these Bills of Quantities."]
[]
[null,"SUPPLEMENTARY PREAMBLES"]
[]
[null,"The General Conditions of Contract, the Special and Project Specific Conditions of Contract, the Specifications (including the Project Specifications, Technical Specifications and Additional Specifications) and the Drawings shall be read in conjunction with the Schedule of Quantities."]
[]
[null,"The Schedule comprises items covering the Contractor's profit and costs of general liabilities and of the construction of temporary and permanent Works."]
[]
[null,"Although the Tenderer is at liberty to insert a rate of his own choosing for each item in the Schedule, he should note the fact that the Contractor is entitled, under various circumstances, to payment for additional work carried out and that the Engineer is obliged to base his assessment of the rates to be paid for such additional work on the rates inserted in the schedule by the Contractor. "]
[]
[null,"Where applicable, Clause 8 of each Standardised Specification, the measurement and payment clause of each Particular Specification, and the Scheduled Payment items read together with the relevant clauses of the Standard, Project, Technical and Additional Specifications, all set out which ancillary or associated activities are included in the rates for the specified operations. "]
[]
[null,"For example, where PFA 04.02 and FA 15.02 appear in the \"Payment Refers To\" column, the specific payment item to be priced shall include all work to be done, material, labour, etc, as described and specified in the Standard and Particular Specifications, Clauses PFA 04.02 and FA 15.02.  The \"Payment Refer\" item numbers appearing in the Schedule of Quantities thus refer to the corresponding item numbers in the Specifications. "]
[]
[null,"Descriptions in the Schedule of Quantities are abbreviated and may differ from those in the Standardised Specifications.  No considerations will be given to any claim submitted on these bases.  Should any requirements of the measurement and payment clause of the appropriate Standardised Specification(s) be contrary to the terms of the Schedule,  the requirement of the appropriate Standard, Project, Particular, Technical or Additional Specification as the case may be, shall prevail. "]
[]
[null,"Unless stated to the contrary, items are measured nett in accordance with the Drawings without any allowance having been made for waste. "]
[]
[null,"The amounts and rates to be inserted in the Schedule of Quantities shall be the full inclusive amounts to the Employer for the work described under the several items.  Such amounts shall cover all the costs and expenses that may be required in and for the construction of the work described, and shall cover the costs of all general risks, profits, taxes (but excluding value-added tax), liabilities and obligations set forth or implied in the documents on which the Tender is based. "]
[]
[null,"An amount or rate shall be entered against each item in the Schedule of Quantities, whether or not quantities are stated.  An item against which no amount or rate is entered will be considered to be covered by the other amounts or rates in the Schedule. "]
[]
[null,"Should the Tenderer group a number of items together and tender one lump sum for such group of items, the single tendered lump sum shall apply to that group of items and not to each individual item, or should he indicate against any item that full compensation for such item has been included in another item, the rate for the item included in another item shall be deemed to be nil."]
[]
[null,"The Tenderer shall enter a rate or lump sum for each item in the Schedule of Quantities in BLACK INK. "]
[]
[null,"The Tenderer is also referred to paragraph 7.2 of form PW 782 (07/99):  Conditions of Tender, enclosed to the Tender documents. "]
[]
[null,"LOW VOLTAGE CABLE "]
[]
[null,"Provide, install, test and commission the following 1000V PVC/SWA/PVC copper cables. Prices shall allow for the installation of cables in cable ducts, through sleeves, conduit or installation against vertical and horizontal levels. "]
[]
[null,"16mm² x 3 Core ECC PVC Copper Cable "]
[]
[1,"Supply ","m",100,null,{"$f":"D1169*E1169","v":0}]
[]
[2,"Install ","m",100,null,{"$f":"D1171*E1171","v":0}]
[]
[null,"10mm² x 3 Core ECC PVC Copper Cable "]
[]
[3,"Supply ","m",600,null,{"$f":"D1175*E1175","v":0}]
[]
[4,"Install ","m",600,null,{"$f":"D1177*E1177","v":0}]
[]
[null,"TERMINATIONS "]
[]
[null,"Terminate and make off the following 1000V PVC/SWA/PVC cables in a cable gland according to the manufacturer's instructions. Provide the cores with lugs and bolt onto terminals.  The cable gland and marking of the cable shall also be allowed for. "]
[]
[null,"16mm² x 3 Core PVC Copper Cable "]
[]
[5,"Supply ","No",2,null,{"$f":"D1185*E1185","v":0}]
[]
[6,"Install ","No",2,null,{"$f":"D1187*E1187","v":0}]
[]
[null,"10mm² x 2 Core PVC Copper Cable"]
[]
[7,"Supply ","No",12,null,{"$f":"D1191*E1191","v":0}]
[]
[8,"Install ","No",12,null,{"$f":"D1193*E1193","v":0}]
[]
[null,"CABLE SLEEVES "]
[]
[null,"Provide and install the following UPVC sleeves in the ground complete with mild-steel draw wire. "]
[]
[null,"50mm Sleeves "]
[]
[9,"Supply ","m",550,null,{"$f":"D1201*E1201","v":0}]
[]
[10,"Install ","m",550,null,{"$f":"D1203*E1203","v":0}]
[]
[null,"50mm Bends "]
[]
[11,"Supply ","No",15,null,{"$f":"D1207*E1207","v":0}]
[]
[12,"Install ","No",15,null,{"$f":"D1209*E1209","v":0}]
[]
[null,"DISTRIBUTION BOARDS "]
[]
[null,"New distribution boards, kiosks, etc., supplied and installed in position, complete with all busbar work, switchgear, terminals, wiring, lacing, conduit terminations, meters, and all other items, including full labelling and legend card, all in accordance with the schematic distribution board drawings:"]
[]
[null,"Main Distribution board (DB-A) "]
[]
[13,"Supply ","No",1,null,{"$f":"D1217*E1217","v":0}]
[]
[14,"Install ","No",1,null,{"$f":"D1219*E1219","v":0}]
[]
[null,"Distribution board (DB-B) "]
[]
[15,"Supply ","No",1,null,{"$f":"D1223*E1223","v":0}]
[]
[16,"Install ","No",1,null,{"$f":"D1225*E1225","v":0}]
[]
[null,"Distribution board (DB-C) "]
[]
[17,"Supply ","No",1,null,{"$f":"D1229*E1229","v":0}]
[]
[18,"Install ","No",1,null,{"$f":"D1231*E1231","v":0}]
[]
[null,"Distribution board (DB-D) "]
[]
[19,"Supply ","No",1,null,{"$f":"D1235*E1235","v":0}]
[]
[20,"Install ","No",1,null,{"$f":"D1237*E1237","v":0}]
[]
[null,"Distribution board (DB-H) "]
[]
[21,"Supply ","No",1,null,{"$f":"D1241*E1241","v":0}]
[]
[22,"Install ","No",1,null,{"$f":"D1243*E1243","v":0}]
[]
[null,"Distribution board (DB-I) "]
[]
[23,"Supply ","No",1,null,{"$f":"D1247*E1247","v":0}]
[]
[24,"Install ","No",1,null,{"$f":"D1249*E1249","v":0}]
[]
[null,"ESKOM CONNECTION "]
[]
[null,"The following Net Sums have been allocated for Eskom costs for upgrading of existing meter to 80A single phase"]
[]
[25,"Allow the Net Sum of R50,000.00 (Fifty Thousand Rand) for relocation of Eskom meter and upgrade to 60A","SUM",1,{"v":50000,"d":"R50,000.00"},{"$f":"D1255*E1255","v":{"v":50000,"d":"R50,000.00"}}]
[]
[null,"EXCAVATIONS "]
[]
[null,"All prices below shall include the excavation of trenches and holes, separating of stones, ground, and rock, levelling of trench bed, refill compacting and  reparation of all surfaces to their original finish. "]
[]
[26,"Excavate in soft ground ","m3",200,null,{"$f":"D1261*E1261","v":0}]
[]
[27,"Excavate in soft rock ","m3",150,null,{"$f":"D1263*E1263","v":0}]
[]
[28,"Excavate in hard rock ","m3",100,null,{"$f":"D1265*E1265","v":0}]
[]
[29,"Supply cable marker tape & Install 400mm below finished ground level ","m",450,null,{"$f":"D1267*E1267","v":0}]
[]
[null,"REMOVAL OF EXISTING ELECTRICAL INSTALLATION "]
[]
[30,"Allow the sum for the removal of existing Electrical installation in Block A ","Item",1,null,{"$f":"D1271*E1271","v":0}]
[]
[31,"Allow the sum for the removal of existing Electrical installation in Block B","Item",1,null,{"$f":"D1273*E1273","v":0}]
[]
[32,"Allow the sum for the removal of existing Electrical installation in Block C ","Item",1,null,{"$f":"D1275*E1275","v":0}]
[]
[33,"Allow the sum for the removal of existing Electrical installation in Block D ","Item",1,null,{"$f":"D1277*E1277","v":0}]
[]
[null,"LIGHTNING PROTECTION INSTALLATION AND ISSUING OF CERTIFICATE FOR BLOCK A, B and C "]
[]
[34,"Allow for the execution of a Soil Resistivity Survey for the site and for submitting a copy of the reports to the Engineer. ","Item",1,null,{"$f":"D1281*E1281","v":0}]
[]
[35,"Allow for the testing of the complete installation, including lightning protection earth electrodes and the issuing of test certificates for each block ","No",9,null,{"$f":"D1283*E1283","v":0}]
[]
[36,"50mm PVC insulated aluminium conductor for bonding down conductors to earth rods, etc. inclusive of lugs, ferrules, bolts, etc. ","m",626,null,{"$f":"D1285*E1285","v":0}]
[]
[37,"Supply and install corrosion resistant stainless steel terminal for roof connection points and and aluminium bond to take aluminium down conductor from roof terminals.","No",38,null,{"$f":"D1287*E1287","v":0}]
[]
[38,"Supply and Install ferrules and lugs for bonding of any metalwork to air terminal system.","No",90,null,{"$f":"D1289*E1289","v":0}]
[]
[39,"Supply and install 1.5m copper 16mm diameter earth rods driven into the ground including jointing to copper bonding conductor.","No",38,null,{"$f":"D1291*E1291","v":0}]
[]
[40,"Supply and install test point connection in each down conductor complete with 132 x 82 x 55mm deep screw lid enclosure.","No",38,null,{"$f":"D1293*E1293","v":0}]
[]
[41,"Supply and Install 25mm pvc pipe ","m",184,null,{"$f":"D1295*E1295","v":0}]
[]
[42,"Supply and Install 50mm aluminium conductor ","m",626,null,{"$f":"D1297*E1297","v":0}]
[]
[null,"TESTING AND COMMISSIONING ELECTRICAL INSTALLATION, CABLES, DISTRIBUTION BOARDS AND ISSUING COC AS PER SANS 10142."]
[]
[43,"Distribution board DB-A ","Item",1,null,{"$f":"D1301*E1301","v":0}]
[]
[44,"Distribution board DB-B","Item",1,null,{"$f":"D1303*E1303","v":0}]
[]
[45,"Distribution board DB-C","Item",1,null,{"$f":"D1305*E1305","v":0}]
[]
[46,"Distribution board DB-D","Item",1,null,{"$f":"D1307*E1307","v":0}]
[]
[47,"Distribution board DB-H","Item",1,null,{"$f":"D1309*E1309","v":0}]
[]
[48,"Distribution board DB-I","Item",1,null,{"$f":"D1311*E1311","v":0}]
[]
[null,"ALLOWANCE FOR BUILDERS WORK "]
[]
[49,"Allow the Net Sum of R40,000.00 (Fourty Thousand Rand) for builders work ","SUM",1,{"v":40000,"d":"R40,000.00"},{"$f":"D1315*E1315","v":{"v":40000,"d":"R40,000.00"}}]
[]
[null,"CONDUIT "]
[]
[null,"20mm Diameter PVC Conduit "]
[]
[50,"Supply ","m",1250,null,{"$f":"D1321*E1321","v":0}]
[]
[51,"Install ","m",1250,null,{"$f":"D1323*E1323","v":0}]
[]
[null,"25mm Diameter PVC conduit "]
[]
[52,"Supply ","m",600,null,{"$f":"D1327*E1327","v":0}]
[]
[53,"Install ","m",600,null,{"$f":"D1329*E1329","v":0}]
[]
[null,"CIRCUIT WIRING "]
[]
[null,"The supply and installation in conduit of stranded copper PVC insulated conductors  in groups. "]
[]
[null,"2 x 1.5mm² and 2.5mm² earth  wire "]
[]
[54,"Supply ","m",3750,null,{"$f":"D1337*E1337","v":0}]
[]
[55,"Install ","m",3750,null,{"$f":"D1339*E1339","v":0}]
[]
[null,"2 x 2.5mm² and 2.5mm² earth  wire "]
[]
[56,"Supply ","m",1800,null,{"$f":"D1343*E1343","v":0}]
[]
[57,"Install ","m",1800,null,{"$f":"D1345*E1345","v":0}]
[]
[null,"Draw wire "]
[]
[58,"Supply ","m",1850,null,{"$f":"D1349*E1349","v":0}]
[]
[59,"Install ","m",1850,null,{"$f":"D1351*E1351","v":0}]
[]
[null,"CONDUIT BOXES "]
[]
[null,"50mm round PVC surface "]
[]
[60,"Supply ","No",300,null,{"$f":"D1357*E1357","v":0}]
[]
[61,"Install ","No",300,null,{"$f":"D1359*E1359","v":0}]
[]
[null,"100 x 50 x 50mm galvanised box flush in brickwork"]
[]
[62,"Supply ","No",26,null,{"$f":"D1363*E1363","v":0}]
[]
[63,"Install ","No",26,null,{"$f":"D1365*E1365","v":0}]
[]
[null,"100 x 100 x 50mm galvanised box cover plate "]
[]
[64,"Supply ","No",29,null,{"$f":"D1369*E1369","v":0}]
[]
[65,"Install ","No",29,null,{"$f":"D1371*E1371","v":0}]
[]
[null,"LIGHT FITTINGS "]
[]
[null,"Luminaries and accessories supplied complete with lamps. All fittings to carry the SABS mark. "]
[]
[null,"Type A luminaries "]
[]
[66,"Supply ","No",60,null,{"$f":"D1379*E1379","v":0}]
[]
[67,"Install ","No",60,null,{"$f":"D1381*E1381","v":0}]
[]
[null,"Type B luminaries "]
[]
[68,"Supply ","No",40,null,{"$f":"D1385*E1385","v":0}]
[]
[69,"Install ","No",40,null,{"$f":"D1387*E1387","v":0}]
[]
[null,"SMALL POWER"]
[]
[null,"Supply and installation complete with all  covers and fixings. "]
[]
[null,"Photo electric-cell with 65mm deep conduit box "]
[]
[70,"Supply ","No",6,null,{"$f":"D1395*E1395","v":0}]
[]
[71,"Install ","No",6,null,{"$f":"D1397*E1397","v":0}]
[]
[null,"Supply & Install 20A Double Pole , 220V Contactor "]
[]
[72,"Supply ","No",6,null,{"$f":"D1401*E1401","v":0}]
[]
[73,"Install ","No",6,null,{"$f":"D1403*E1403","v":0}]
[]
[null,"16A Double socket outlet in box "]
[]
[74,"Supply ","No",29,null,{"$f":"D1407*E1407","v":0}]
[]
[75,"Install ","No",29,null,{"$f":"D1409*E1409","v":0}]
[]
[null,"16A single lever one way light switch "]
[]
[76,"Supply ","No",26,null,{"$f":"D1413*E1413","v":0}]
[]
[77,"Install ","No",26,null,{"$f":"D1415*E1415","v":0}]
[]
[null,"Siren complete with all necessary equipment for wiring"]
[]
[78,"Supply ","No",1,null,{"$f":"D1419*E1419","v":0}]
[]
[79,"Install ","No",1,null,{"$f":"D1421*E1421","v":0}]
[]
[null,"Ceiling Fan complete with all necessary equipment and to be switched with lighting circuits"]
[]
[80,"Supply ","No",2,null,{"$f":"D1425*E1425","v":0}]
[]
[81,"Install ","No",2,null,{"$f":"D1427*E1427","v":0}]
[]
[null,"SUNDRIES "]
[]
[82,"Earthing and bonding of complete installation ","Item",1,null,{"$f":"D1431*E1431","v":0}]
[]
[83,"Test and Certify as per SANS 10142","Item",1,null,{"$f":"D1433*E1433","v":0}]
[]
[84,"Earth electrode installation","Item",1,null,{"$f":"D1435*E1435","v":0}]
[]
["Bill No. 17","Carried to Summary",{"$nulls":3},{"$f":"SUM(F1161:F1436)","v":{"v":90000,"d":"R90,000.00"}}]
[]
[null,"BILL NO. 18"]
[]
[null,"EXTERNAL WORKS (ALL TRADES)"]
[]
[null,"PREAMBLES"]
[]
[null,"The tenderer is referred to the relevant clauses in the Standard Preambles for Trades 2008 which are incorporated at the back of these Bills of Quantities."]
[]
[null,"SUPPLEMENTARY PREAMBLES "]
[]
[null,"The tenderer is referred to the relevant clauses in the ASAQS Model Trades Preambles 2008 which are incorporated at the back of these Bills of Quantities"]
[]
[null,"Explosives :"]
[]
[null,"No explosives whatsoever may be used for demolition purposes unless otherwise stated"]
[]
[null,"General :"]
[]
[null,"The contractor shall carry out the whole of the works with as little mess and noise as possible and with minimum disturbance to adjoining classroom blocks and their students. He shall provide proper protection and provide, erect and remove when directed, any temporary tarpaulins that may be necessary during the progress of the works, all to the satisfaction of the principal agent"]
[]
[null,"Water supply pipes and other piping that may be encountered and found necessary to disconnect or cut, shall be effectually stopped off or grubbed up and removed, and any new connections that may be necessary shall be made with proper fittings, to the satisfaction of the principal agent"]
[]
[null,"Removal of materials : "]
[]
[null,"Where removal is included in the heading, sub-heading or item description, prices shall be deemed to include for the necessary costs in removal and appropriate disposal of materials including but not limited to labour, transportation and disposal costs. No further claims in this regard will be entertained"]
[]
[null,"TEMPORARY WORKS"]
[]
[null,"Metalwork (CPAP work group No. 136)"]
[]
[1,"1.8m \"Bonnox\" wire mesh temporary fencing with shade cloth","m",461,null,{"$f":"D1469*E1469","v":0}]
[]
[2,"Double gate 3 x 1.8m high","No",1,null,{"$f":"D1471*E1471","v":0}]
[]
[null,"THE FOLLOWING TO FENCING AND GATES"]
[]
[null,"Metalwork (CPAP work group No. 136)"]
[]
[3,"Double leaf gate size 4000 x 1900mm high hot dipped galvanised steel coated with fusion bond epoxy powder welded mesh","No",1,null,{"$f":"D1477*E1477","v":0}]
[]
[null,"THE FOLLOWING TO DRY STACK RETAINING WALL"]
[]
[null,"Precast concrete interlocking planter blocks finished smooth on exposed surfaces with stepped face and curves as required to suit slopes with planter blocks laid with horizontal bed joints to 60 degree slope including backfilling with earth obtained from the excavations and filling the blocks with garden soil lightly tamped as the work proceeds "]
[]
[null,"Earthworks (CPAP Work Group No. 104)"]
[]
[4,"Excavation not exceeding 2m deep for trenches including risk of collapse, carting away, etc","m3",16,null,{"$f":"D1485*E1485","v":0}]
[]
[5,"Soilcrete backfilling stabilised with 6% cement and compacted to 95% mod aashto density in minimum layers of 150mm","m3",5,null,{"$f":"D1487*E1487","v":0}]
[]
[null,"Concrete (CPAP Work Group No. 110)"]
[]
[6,"25MPa/19mm Reinforced concrete in foundation","m3",10,null,{"$f":"D1491*E1491","v":0}]
[]
[7,"\"Infraset Paving Terrace Blok® Concrete Retaining Walls or equally aproved\" TB500 Interlocking blocks in foundations","m2",12,null,{"$f":"D1493*E1493","v":0}]
[]
[8,"\"Infraset Paving Terrace Blok® Concrete Retaining Walls or equally aproved\" TB500 Interlocking blocks","m2",88,null,{"$f":"D1495*E1495","v":0}]
[]
[9,"Extra over for filling in retaining blok with 25MPa/19mm unreinforced concrete in foundations","m3",2,null,{"$f":"D1497*E1497","v":0}]
[]
[null,"Fabric reinforcement (CPAP Work Group 114)"]
[]
[10,"Steel reinforcement of various diameters to concrete foundations","t",1.5,null,{"$f":"D1501*E1501","v":0}]
[]
[null,"Drainage (CPAP Work Group No. 146) "]
[]
[11,"Geogrid 100 x 100 at 500mm laps vertically behind wall","m2",88,null,{"$f":"D1505*E1505","v":0}]
[]
[12,"160mm Diameter \"Drainex or equally aproved\" slotted pipe encased and including 19mm stones wrapped in bidem","m",40,null,{"$f":"D1507*E1507","v":0}]
[]
[13,"50mm Diameter PVC weepholes 250mm long wrapped in bidem","No",352,null,{"$f":"D1509*E1509","v":0}]
[]
[null,"THE FOLLOWING TO BALUSTRADE WALLS"]
[]
[null,"Earthworks (CPAP Work Group No. 104)"]
[]
[14,"Excavation in earth not exceeding 2m deep for trenches","m3",13,null,{"$f":"D1515*E1515","v":0}]
[]
[15,"Extra over trench and hole excavations in earth for excavation in soft rock","m3",1,null,{"$f":"D1517*E1517","v":0}]
[]
[16,"Extra over trench and hole excavations in earth for excavation in hard rock","m3",1,null,{"$f":"D1519*E1519","v":0}]
[]
[17,"Risk of collapse of excavations to sides of trench and hole excavations not exceeding 1,5m deep","m2",38,null,{"$f":"D1521*E1521","v":0}]
[]
[18,"Keeping excavations free of all water other than subterranean water","Item",1,null,{"$f":"D1523*E1523","v":0}]
[]
[19,"Earth filling obtained from the excavations and/or prescribed stock piles on site compacted to 98% Mod AASHTO density for backfilling to trenches, holes, etc","m3",3,null,{"$f":"D1525*E1525","v":0}]
[]
[20,"150mm Thick earth filling of G2 quality supplied by the contractor compacted to 90% Mod AASHTO density","m3",3,null,{"$f":"D1527*E1527","v":0}]
[]
[21,"In-situ dry density (sand replacement) test in accordance with method A10 (a) of TMH 1","No",2,null,{"$f":"D1529*E1529","v":0}]
[]
[22,"Compaction of ground surface under trenches etc including scarifying for a depth of 150mm, breaking down oversize material, adding suitable material where necessary and compacting to 95% Mod AASHTO density","m2",17,null,{"$f":"D1531*E1531","v":0}]
[]
[23,"Soil poisoning under trenches etc including forming and poisoning shallow furrows against foundation walls etc, filling in furrows and ramming","m2",29,null,{"$f":"D1533*E1533","v":0}]
[]
[null,"Concrete (CPAP Work Group No.110)"]
[]
[24,"25MPa/19mm Reinforced concrete in surface beds and thickenings, etc cast in panels on waterproofing","m3",5,null,{"$f":"D1537*E1537","v":0}]
[]
[null,"Fabric reinforcement (CPAP Work Group 114)"]
[]
[25,"Steel reinforcement of various diameters to concrete foundations","t",0.75,null,{"$f":"D1541*E1541","v":0}]
[]
[null,"Masonry (CPAP Work Group No. 116)"]
[]
[26,"Brickwork in foundations of NFX bricks (14MPa Nominal Compressive Strength) in class I mortar in One brick walls","m2",12,null,{"$f":"D1545*E1545","v":0}]
[]
[27,"Brickwork in super structure of NFP bricks (14MPa Nominal Compressive Strength) in class I mortar in One brick walls","m2",24,null,{"$f":"D1547*E1547","v":0}]
[]
[28,"Extra over brickwork for face brickwork for foundations in \"Corobrik Firelight Satin FBX\" face bricks, with recessed vertical and horizontal jointing","m2",7,null,{"$f":"D1549*E1549","v":0}]
[]
[29,"Extra over brickwork for face brickwork for super structure in \"Corobrik Firelight Satin FBX\" face bricks, with recessed vertical and horizontal jointing","m2",24,null,{"$f":"D1551*E1551","v":0}]
[]
[30,"Extra over brickwork for brick-on-flat header course band","m",24,null,{"$f":"D1553*E1553","v":0}]
[]
[31,"150mm Wide brickwork reinforcement built in horizontally","m",264,null,{"$f":"D1555*E1555","v":0}]
[]
[null,"V-DRAINS "]
[]
[null,"Earthworks (CPAP Work Group No. 104)"]
[]
[32,"Reduce levels in earth not exceeding 2m deep","m3",126,null,{"$f":"D1561*E1561","v":0}]
[]
[33,"Extra over all excavations for loading, carting and dumping surplus excavated material off site to a dumping site to be found by the Contractor (no allowance made for increase in bulk)","m3",126,null,{"$f":"D1563*E1563","v":0}]
[]
[34,"Backfilling with  G5 material supplied and carted onto site by the Contractor, compacted to a density of at least 95% Mod. AASHTO maximum density under v-drains  ","m3",57,null,{"$f":"D1565*E1565","v":0}]
[]
[35,"Coarse river sand supplied by the contractor under v-drains, etc.","m3",12,null,{"$f":"D1567*E1567","v":0}]
[]
[36,"Keeping excavations free of all water other than subterranean water","Item",1,null,{"$f":"D1569*E1569","v":0}]
[]
[37,"In-situ dry density (sand replacement) test in accordance with method A10 (a) of TMH 1","No",10,null,{"$f":"D1571*E1571","v":0}]
[]
[38,"Maximum dry density and optimum moisture content test in accordance with method A7 of TMH 1 ","No",4,null,{"$f":"D1573*E1573","v":0}]
[]
[39,"Atterberg limits test in accordance with methods A2 to A4 of TMH1  ","No",2,null,{"$f":"D1575*E1575","v":0}]
[]
[40,"Compaction of ground surface under V-drains, etc., including scarifying for a depth of 150mm, breaking down oversize material, adding suitable material where necessary and compacting to 95% Mod. AASHTO density","m2",383,null,{"$f":"D1577*E1577","v":0}]
[]
[41,"Approved brand of anti-termite soil poison applied by a registered pest control company and guaranteed against termite infestation for ten years under V-drains, etc. including forming and poisoning shallow furrows against foundation walls etc., filling in furrows and ramming","m2",383,null,{"$f":"D1579*E1579","v":0}]
[]
[null,"Concrete (CPAP Work Group No. 110)"]
[]
[42,"25MPa/19mm Reinforced concrete V-drains cast against compacted earth laid to falls and currents.","m3",57,null,{"$f":"D1583*E1583","v":0}]
[]
[43,"Finishing to top surfaces of concrete with smooth wood float (Class FM2) to V-drains to falls and currents","m2",383,null,{"$f":"D1585*E1585","v":0}]
[]
[44,"Movement joint not exceeding 300mm high formed with one layer of 10mm 'Masonite Flexi joint Board' or other equally approved approved  bitumen impregnated softboard filler board vertically between block and concrete surfaces.","m",607,null,{"$f":"D1587*E1587","v":0}]
[]
[45,"Making and testing set of three 150 x 150 x 150mm concrete strength test cube (Provisional)","No",10,null,{"$f":"D1589*E1589","v":0}]
[]
[null,"Formwork (CPAP Work Group No. 111)"]
[]
[46,"Class FM2 ordinary finish formwork to edges not exceeding 300mm high","m",479,null,{"$f":"D1593*E1593","v":0}]
[]
[null,"Reinforcement (CPAP Work Group No. 114)"]
[]
[47,"Type ref. 193 fabric reinforcement in v-drains ","m2",383,null,{"$f":"D1597*E1597","v":0}]
[]
[null,"Waterproofing (CPAP Work Group No. 120)"]
[]
[48,"One layer of 375 micron \"Consol Plastics\" waterproof sheeting sealed at laps","m2",383,null,{"$f":"D1601*E1601","v":0}]
[]
[49,"Thioflex 600' or other equally approved two-part polysulphide flexible joint sealants, including backing cord, bond breaker, primer, etc., in horizontal joints10 x 10mm at expansion joints.","m",607,null,{"$f":"D1603*E1603","v":0}]
[]
[null,"Drainage (CPAP Work Group No. 146) "]
[]
[null,"Class 34 uPVC pipes"]
[]
[50,"110mm Pipes laid in and including trenches not exceeding 1m deep","m",155,null,{"$f":"D1609*E1609","v":0}]
[]
[null,"Gulleys, inlet manholes, inspection chambers, etc"]
[]
[51,"Inspection chamber 600 x 600mm and not exceeding 750mm deep internally complete","No",6,null,{"$f":"D1613*E1613","v":0}]
[]
[null,"Gratings, covers, etc"]
[]
[52,"300 x 450mm x 53.2kg Cast iron dished grating and frame (Saint Gobain code 2880)","No",6,null,{"$f":"D1617*E1617","v":0}]
[]
[null,"Class 100D concrete pipes with interlocking joints"]
[]
[53,"450mm Pipes laid in and including trenches exceeding 1m and not exceeding 2m deep","m",212,null,{"$f":"D1621*E1621","v":0}]
[]
[null,"Sumps, catchpits, inspection chambers, etc. including concrete kerbs or precast concrete cover slabs, gratings and covers"]
[]
[54,"Construct 230mm brick catchpit approximately 1255mm x 940mm overall size on plan and approximately 1100mm high, including excavation in earth and cart away all excess material, 25MPa concrete surface bed with 2 layers of 395 Mesh, concrete benching for 450mm diameter pipe including 520 x 790 heavy duty stormwater grating and frame","m",3,null,{"$f":"D1625*E1625","v":0}]
[]
[null,"THE FOLLOWING TO RAIN WATER HARVESTING TANKS, ETC."]
[]
[null,"Polyethlene water storage tanks"]
[]
[null,"Plumbing (CPAP Work Group No. 148)"]
[]
[55,"5000 Litres Jo-jo rainwater tank or similar approved, with 75mm Diameter opening for downpipe from gutter including 50mm Diameter overflow opening with 4mm Diameter galvanised wire looped through top of tank isolated with 15mm diameter hose to top of tank and anchored to top of slab with 'Hilti' hooks drilled into slab at all four corners and 15mm hose bib tap","No",5,null,{"$f":"D1633*E1633","v":0}]
[]
[56,"20mm PVC ball valve or equally approved tank tap fitted to a 22mm extension pipe with barrel nipple & galvanised socket","No",5,null,{"$f":"D1635*E1635","v":0}]
[]
[null,"Tank stand"]
[]
[null,"Earthworks (CPAP Work Group No. 104)"]
[]
[57,"Excavation in earth not exceeding 2m deep to reduce levels","m3",45,null,{"$f":"D1641*E1641","v":0}]
[]
[58,"Risk of collapse of sides of trench and hole excavations not exceeding 1,5m deep","m2",128,null,{"$f":"D1643*E1643","v":0}]
[]
[59,"Extra over all excavations for loading, carting and dumping surplus excavated material (no allowance made for increase in bulk) off site to be located by the contractor","m3",26,null,{"$f":"D1645*E1645","v":0}]
[]
[60,"Backfilling to trenches, holes, etc.,","m3",19,null,{"$f":"D1647*E1647","v":0}]
[]
[61,"Keeping excavations free of all water other than subterranean water ","Item",5,null,{"$f":"D1649*E1649","v":0}]
[]
[null,"Concrete (CPAP Work Group No.110)"]
[]
[62,"Reinforced concrete Class 25/19 in surface beds ","m3",8,null,{"$f":"D1653*E1653","v":0}]
[]
[63,"Reinforced concrete Class 25/19 in strip footings ","m3",17,null,{"$f":"D1655*E1655","v":0}]
[]
[64,"Finishing top surfaces of concrete smooth with a power float to surface beds, slabs, etc to falls","m2",80,null,{"$f":"D1657*E1657","v":0}]
[]
[null,"Formwork (CPAP Work Group No. 111)"]
[]
[65,"Rough formwork to sides edges, risers, ends and reveals not exceeding 300mm high or wide","m",80,null,{"$f":"D1661*E1661","v":0}]
[]
[null,"Reinforcement (CPAP Work Group No. 114)"]
[]
[66,"Steel reinforcement of various diameters to concrete foundations","t",2.55,null,{"$f":"D1665*E1665","v":0}]
[]
[67,"Type Ref. 617 fabric reinforcement","m2",80,null,{"$f":"D1667*E1667","v":0}]
[]
[null,"Masonry (CPAP Work Group No. 116)"]
[]
[68,"One Brickwork of NFX bricks (14 MPa nominal compressive strength) in Class I mortar ","m2",40,null,{"$f":"D1671*E1671","v":0}]
[]
[null,"THE FOLLOWING TO CONCRETE PAVING"]
[]
[null,"Earthworks (CPAP Work Group No. 104)"]
[]
[69,"Excavation in earth not exceeding 2m deep for reducing levels under floors","m3",288,null,{"$f":"D1677*E1677","v":0}]
[]
[70,"Extra over trench and hole excavations in earth for excavation in soft rock","m3",28,null,{"$f":"D1679*E1679","v":0}]
[]
[71,"Extra over trench and hole excavations in earth for excavation in hard rock","m3",6,null,{"$f":"D1681*E1681","v":0}]
[]
[72,"Keeping excavations free of all water other than subterranean water","Item",1,null,{"$f":"D1683*E1683","v":0}]
[]
[73,"Earth filling obtained from the excavations and/or prescribed stock piles on site compacted to 98% Mod AASHTO density for backfilling to trenches, holes, etc","m3",144,null,{"$f":"D1685*E1685","v":0}]
[]
[74,"150mm Thick earth filling of G2 quality supplied by the contractor compacted to 90% Mod AASHTO density","m3",144,null,{"$f":"D1687*E1687","v":0}]
[]
[75,"Coarse river sand supplied by the contractor under floors etc","m3",48,null,{"$f":"D1689*E1689","v":0}]
[]
[76,"In-situ dry density (sand replacement) test in accordance with method A10 (a) of TMH 1","No",12,null,{"$f":"D1691*E1691","v":0}]
[]
[77,"Maximum dry density and optimum moisture content test in accordance with method A7 of TMH 1","No",10,null,{"$f":"D1693*E1693","v":0}]
[]
[78,"Atterberg limits test in accordance with methods A2 to A4 of TMH1","No",10,null,{"$f":"D1695*E1695","v":0}]
[]
[79,"One layer of 250 micron \"Consol Plastics Gunplas USB Green or equally aproved\" waterproof sheeting sealed at laps with \"Gunplas Pressure Sensitive Tape or equally aproved\" under pavings","m2",960,null,{"$f":"D1697*E1697","v":0}]
[]
[80,"Compaction of ground surface under floors etc including scarifying for a depth of 150mm, breaking down oversize material, adding suitable material where necessary and compacting to 95% Mod AASHTO density","m2",960,null,{"$f":"D1699*E1699","v":0}]
[]
[81,"Soil poisoning under floors etc including forming and poisoning shallow furrows against foundation walls etc, filling in furrows and ramming","m2",960,null,{"$f":"D1701*E1701","v":0}]
[]
[null,"Concrete (CPAP Work Group No. 110)"]
[]
[82,"25MPa/19mm Reinforced concrete in surface beds and thickenings, etc cast in panels on waterproofing","m3",96,null,{"$f":"D1705*E1705","v":0}]
[]
[83,"Making and testing 150 x 150 x 150mm concrete strength test cube (Provisional)","Sets",5,null,{"$f":"D1707*E1707","v":0}]
[]
[84,"Finishing top surfaces of concrete smooth with a power float to surface beds, slabs, etc to falls","m2",960,null,{"$f":"D1709*E1709","v":0}]
[]
[85,"3 x 50mm Saw cut joints in top of concrete","m",265,null,{"$f":"D1711*E1711","v":0}]
[]
[null,"Formwork (CPAP Work Group No. 111)"]
[]
[86,"Rough formwork to edges, risers, ends and reveals not exceeding 300mm high or wide","m",652,null,{"$f":"D1715*E1715","v":0}]
[]
[null,"Reinforcement (CPAP Work Group No. 114)"]
[]
[87,"Type Ref. 193 fabric reinforcement","m2",960,null,{"$f":"D1719*E1719","v":0}]
[]
[null,"Precast concrete (CPAP Work Group No. 112)"]
[]
[null,"Precast concrete finished smooth on exposed surfaces including bedding, jointing and pointing"]
[]
[88,"Kerb (SABS 927 fig 3) 150 x 300mm high with 150 x 150 x 300mm unreinforced concrete haunching at back of each joint including excavation, backfilling, etc","m",456,null,{"$f":"D1725*E1725","v":0}]
[]
[null,"Waterproofing (CPAP Work Group No. 120)"]
[]
[89,"Two-part grey polysulphide sealing compound including backing cord, bond breaker, primer, etc in 5 x 10mm saw cut joints in floor","m",265,null,{"$f":"D1729*E1729","v":0}]
[]
["Bill No. 18","Carried to Summary",{"$nulls":3},{"$f":"SUM(F1463:F1730)","v":0}]
[]
[null,"BILL NO. 19"]
[]
[null,"PROVISIONAL SUMS"]
[]
[null,"PREAMBLES"]
[]
[null,"The tenderer is referred to the relevant clauses in the Standard Preambles for Trades 2008 which are incorporated at the back of these Bills of Quantities."]
[]
[null,"SUPPLEMENTARY PREAMBLES"]
[]
[null,"General"]
[]
[null,"Work for which budgetary allowances are provided will be measured and valued and deducted in whole or in part if not required without any compensation for loss or profit on the said allowances.  Prime cost amounts and provisional sums are net.  The Contractor must note that attendance includes the provision of hoisting and access facilities for a sub-contractor.  The Contractors profit and attendance shall include for the storage of such equipment and materials.  The Contractor must ensure that the capacities of his hoisting equipment is sufficient to deal with the masses and the quantities of the items hoisted.  Provide the necessary personnel to operate such hoisting and access equipment.  Prime cost amounts include for delivery to site of all articles concerned Provisional sums are for material and equipment supplied and installed complete by firms of specialists. "]
[]
[null,"Asbestos removal "]
[]
[1,"Provide the Amount of R 100,000.00 (One hundred thousand Rand) for the Asbestos Inspection Authority (AIA) to  be appointed by the Department of Public Works via the Awarded Contractor. The Awarded Contractor will be expected to provide three (3) quotes for AIA services for approval and acceptance by the Department of Public Works and will then be appointed by the Contractor. The appointed AIA and the appointed Asbestos Contractor for removal and disposal will not be the same entity / company, Refer to duties for AIA and Asbestos Contractor attached\" The duties and responsibilities of the appointed AIA Inspection Authority Abatement Regulations of 2020: If there is no Asbestos Inventory available, the AIA will develop the Inventory for the Client. If there is Asbestos Inventory, the AIA will review the Inventory and Risk Assessment and amend if needed.Based on the Inventory, recommend an anticipated Scope of Work and advise the Client of what category of Asbestos Contractor needs to be appointed. When the Asbestos Contractor is appointed, in consultation with the Asbestos Contractor develop and approve the Plan of Work. Upon approval of the Asbestos Plan, at least 7 days before work is scheduled to take place, submit the plan to Department of Employment and Labour. Ensure that acknowledgement of the Work Plan Submission to the Department of Employment and Labour is received within the 7 day period. Ensure that Medical Fitness certificates and Asbestos training records are available.Provide guidance and site specific instructions to the Asbestos removal and disposal Sub-Contractor. Inspect work activities and if needed to stop work which is not in accordance with the approved work plan or posing risk to health and safety of persons.Perform planned air monitoring to determine exposure levels.Conduct analysis of air monitoring samples.Provide the Client with a report on findings and issue a Clearance to the Client as well as ensuring that the Client is provided with Disposal certificates. ","Item",1,{"v":100000,"d":"R100,000.00"},{"$f":"D1749*E1749","v":{"v":100000,"d":"R100,000.00"}}]
[]
[2,"Allow for profit and general attendance ","%",null,{"$f":"E1749","v":{"v":100000,"d":"R100,000.00"}},{"$f":"D1751*E1751","v":0}]
[]
[null,"Desludging of existing ablutions"]
[]
[3,"Provide the Amount of R 30,000.00 (Thirty thousand Rand) for the desludging of existing ablutions, septic tanks and sewer drains as determined by the Principal Agent","Item",1,{"v":30000,"d":"R30,000.00"},{"$f":"D1755*E1755","v":{"v":30000,"d":"R30,000.00"}}]
[]
[4,"Allow for profit and general attendance ","%",null,{"$f":"E1755","v":{"v":30000,"d":"R30,000.00"}},{"$f":"D1757*E1757","v":0}]
[]
[null,"Repairs to existing structures"]
[]
[5,"Provide the Amount of R 30,000.00 (Thirty thousand Rand) for structural repairs in existing classrooms as per the Structural Engineers requirements","Item",1,{"v":30000,"d":"R30,000.00"},{"$f":"D1761*E1761","v":{"v":30000,"d":"R30,000.00"}}]
[]
[6,"Allow for profit and general attendance ","%",null,{"$f":"E1761","v":{"v":30000,"d":"R30,000.00"}},{"$f":"D1763*E1763","v":0}]
[]
[null,"Smart interactive board (screen) "]
[]
[7,"Provide an amount of R120,000.00 (One Hundred and Twenty Thousand Rand) for the supply and install of one (1)  smart interactive board (screen) to be installed in the team teaching or general multi-purpose classroom or standard classroom ","Item",1,{"v":120000,"d":"R120,000.00"},{"$f":"D1767*E1767","v":{"v":120000,"d":"R120,000.00"}}]
[]
[8,"Allow for profit and general attendance ","%",null,{"$f":"E1767","v":{"v":120000,"d":"R120,000.00"}},{"$f":"D1769*E1769","v":0}]
[]
[null,"Training for function of the smart interactive board (screen) "]
[]
[9,"Provide an amount of R10,000.00 (Ten Thousand Rand) for training to be given on the functioning of the smart interactive screen ","Item",1,{"v":10000,"d":"R10,000.00"},{"$f":"D1773*E1773","v":{"v":10000,"d":"R10,000.00"}}]
[]
[10,"Allow for profit and general attendance ","%",null,{"$f":"E1773","v":{"v":10000,"d":"R10,000.00"}},{"$f":"D1775*E1775","v":0}]
[]
["Bill No. 19","Carried to Summary",{"$nulls":3},{"$f":"SUM(F1746:F1776)","v":{"v":290000,"d":"R290,000.00"}}]
[]
[1,"Preliminaries","Page",18,null,{"$f":"F9","v":0}]
[]
[2,"Alterations (Provisional)","Page",28,null,{"$f":"F153","v":0}]
[]
[3,"Earthwork (Provisional)","Page",32,null,{"$f":"F221","v":0}]
[]
[4,"Concrete, Formwork and Reinforcement ","Page",36,null,{"$f":"F281","v":0}]
[]
[5,"Masonry","Page",39,null,{"$f":"F339","v":0}]
[]
[6,"Waterproofing ","Page",42,null,{"$f":"F377","v":0}]
[]
[7,"Roof Coverings","Page",47,null,{"$f":"F453","v":0}]
[]
[8,"Carpentry and Joinery","Page",54,null,{"$f":"F571","v":0}]
[]
[9,"Ceilings, Partitions & Access Flooring","Page",58,null,{"$f":"F639","v":0}]
[]
[10,"Floor Coverings, Wall Linings, etc","Page",61,null,{"$f":"F685","v":0}]
[]
[11,"Ironmongery","Page",65,null,{"$f":"F743","v":0}]
[]
[12,"Metalwork","Page",68,null,{"$f":"F793","v":0}]
[]
[13,"Plastering","Page",72,null,{"$f":"F857","v":0}]
[]
[14,"Plumbing & Drainage (Provisional)","Page",78,null,{"$f":"F983","v":0}]
[]
[15,"Glazing","Page",81,null,{"$f":"F1029","v":0}]
[]
[16,"Paintwork","Page",86,null,{"$f":"F1125","v":0}]
[]
[17,"Electrical Works (Provisional)","Page",97,null,{"$f":"F1437","v":{"v":90000,"d":"R90,000.00"}}]
[]
[18,"External Works (Provisional)","Page",109,null,{"$f":"F1731","v":0}]
[]
[19,"Provisional Sums","Page",113,null,{"$f":"F1777","v":{"v":290000,"d":"R290,000.00"}}]
[]
[null,"Sub-total Excluding Vat",{"$nulls":3},{"$f":"SUM(F1779:F1816)","v":{"v":380000,"d":"R380,000.00"}}]
[]
[null,"Add 15% Value Added Tax",{"$nulls":3},{"$f":"F1817*0.15","v":{"v":57000,"d":"R57,000.00"}}]
[]
[null,"Carried to Form of Tender",{"$nulls":3},{"$f":"F1817+F1819","v":{"v":437000,"d":"R437,000.00"}}]